{"text_format":"1","workbook":"xlsx","n_sheets":2,"sheets":["手入力用審判用紙","出力用審判用紙 "],"not_rendered":{"charts":0,"images":11,"macros":1,"external_links":0,"defined_names":4,"comments":0,"pivot_tables":0},"unopened":[],"bounds":{"document_bytes":16777216,"sheet_cells":100000,"rows_first":2000,"rows_last":500,"rows_between":2000,"halvings":0,"cell_chars":16384,"cell_head_chars":4096},"cells_cut":0,"cells_raw":0,"read":"whole","date_system":"1900"}

{"sheet":"手入力用審判用紙","index":0,"n_rows":196,"n_cols":58,"rows_kept":196,"cut":false,"hidden":false,"merged":[[28,38,28,41],[26,38,26,41],[64,3,64,21],[65,4,65,21],[53,5,53,6],[53,8,53,10],[53,11,53,12],[53,13,53,14],[53,19,53,22],[53,23,53,24],[53,28,53,29],[56,19,56,22],[56,23,56,24],[56,28,56,29],[56,31,56,33],[58,4,58,5],[58,7,58,8],[58,10,58,11],[58,12,58,19],[58,20,58,22],[54,28,54,29],[54,31,54,33],[55,5,55,6],[55,8,55,10],[8,50,8,52],[2,38,2,41],[59,2,61,2],[59,4,59,5],[59,7,59,8],[59,10,62,11],[59,12,59,19],[62,7,62,8],[62,12,62,19],[62,20,62,22],[59,20,59,22],[60,4,60,5],[60,7,60,8],[60,12,60,19],[60,20,60,22],[61,4,61,5],[61,7,61,8],[61,12,61,19],[61,20,61,22],[56,5,56,6],[56,8,56,10],[56,11,56,12],[56,13,56,14],[53,31,53,33],[55,11,55,12],[55,13,55,14],[55,19,55,22],[55,23,55,24],[55,28,55,29],[55,31,55,33],[54,5,54,6],[54,8,54,10],[54,11,54,12],[54,13,54,14],[54,19,54,22],[54,23,54,24],[51,28,51,29],[51,31,51,33],[52,5,52,6],[52,8,52,10],[52,11,52,12],[52,13,52,14],[52,19,52,22],[52,23,52,24],[52,28,52,29],[52,31,52,33],[51,5,51,6],[51,8,51,10],[51,11,51,12],[51,13,51,14],[51,19,51,22],[51,23,51,24],[49,28,49,29],[49,31,49,33],[50,5,50,6],[50,8,50,10],[50,11,50,12],[50,13,50,14],[50,19,50,22],[50,23,50,24],[50,28,50,29],[50,31,50,33],[49,5,49,6],[49,8,49,10],[49,11,49,12],[49,13,49,14],[49,19,49,22],[49,23,49,24],[47,28,47,29],[47,31,47,33],[48,5,48,6],[48,8,48,10],[48,11,48,12],[48,13,48,14],[48,19,48,22],[48,23,48,24],[48,28,48,29],[48,31,48,33],[47,5,47,6],[47,8,47,10],[47,11,47,12],[47,13,47,14],[47,19,47,22],[47,23,47,24],[45,28,45,29],[45,31,45,33],[46,5,46,6],[46,8,46,10],[46,11,46,12],[46,13,46,14],[46,19,46,22],[46,23,46,24],[46,28,46,29],[46,31,46,33],[45,5,45,6],[45,8,45,10],[45,11,45,12],[45,13,45,14],[45,19,45,22],[45,23,45,24],[43,28,43,29],[43,31,43,33],[44,5,44,6],[44,8,44,10],[44,11,44,12],[44,13,44,14],[44,19,44,22],[44,23,44,24],[44,28,44,29],[44,31,44,33],[43,5,43,6],[43,8,43,10],[43,11,43,12],[43,13,43,14],[43,19,43,22],[43,23,43,24],[41,28,41,29],[41,31,41,33],[42,5,42,6],[42,8,42,10],[42,11,42,12],[42,13,42,14],[42,19,42,22],[42,23,42,24],[42,28,42,29],[42,31,42,33],[41,5,41,6],[41,8,41,10],[41,11,41,12],[41,13,41,14],[41,19,41,22],[41,23,41,24],[39,28,39,29],[39,31,39,33],[40,5,40,6],[40,8,40,10],[40,11,40,12],[40,13,40,14],[40,19,40,22],[40,23,40,24],[40,28,40,29],[40,31,40,33],[39,5,39,6],[39,8,39,10],[39,11,39,12],[39,13,39,14],[39,19,39,22],[39,23,39,24],[37,28,37,29],[37,31,37,33],[38,5,38,6],[38,8,38,10],[38,11,38,12],[38,13,38,14],[38,19,38,22],[38,23,38,24],[38,28,38,29],[38,31,38,33],[37,5,37,6],[37,8,37,10],[37,11,37,12],[37,13,37,14],[37,19,37,22],[37,23,37,24],[35,28,35,29],[35,31,35,33],[36,5,36,6],[36,8,36,10],[36,11,36,12],[36,13,36,14],[36,19,36,22],[36,23,36,24],[36,28,36,29],[36,31,36,33],[35,5,35,6],[35,8,35,10],[35,11,35,12],[35,13,35,14],[35,19,35,22],[35,23,35,24],[33,28,33,29],[33,31,33,33],[34,5,34,6],[34,8,34,10],[34,11,34,12],[34,13,34,14],[34,19,34,22],[34,23,34,24],[34,28,34,29],[34,31,34,33],[33,5,33,6],[33,8,33,10],[33,11,33,12],[33,13,33,14],[33,19,33,22],[33,23,33,24],[31,28,31,29],[31,31,31,33],[32,5,32,6],[32,8,32,10],[32,11,32,12],[32,13,32,14],[32,19,32,22],[32,23,32,24],[32,28,32,29],[32,31,32,33],[31,5,31,6],[31,8,31,10],[31,11,31,12],[31,13,31,14],[31,19,31,22],[31,23,31,24],[29,28,29,29],[29,31,29,33],[30,5,30,6],[30,8,30,10],[30,11,30,12],[30,13,30,14],[30,19,30,22],[30,23,30,24],[30,28,30,29],[30,31,30,33],[29,5,29,6],[29,8,29,10],[29,11,29,12],[29,13,29,14],[29,19,29,22],[29,23,29,24],[27,28,27,29],[27,31,27,33],[28,5,28,6],[28,8,28,10],[28,11,28,12],[28,13,28,14],[28,19,28,22],[28,23,28,24],[28,28,28,29],[28,31,28,33],[27,5,27,6],[27,8,27,10],[27,11,27,12],[27,13,27,14],[27,19,27,22],[27,23,27,24],[25,28,25,29],[25,31,25,33],[26,5,26,6],[26,8,26,10],[26,11,26,12],[26,13,26,14],[26,19,26,22],[26,23,26,24],[26,28,26,29],[26,31,26,33],[25,5,25,6],[25,8,25,10],[25,11,25,12],[25,13,25,14],[25,19,25,22],[25,23,25,24],[23,28,23,29],[23,31,23,33],[24,5,24,6],[24,8,24,10],[24,11,24,12],[24,13,24,14],[24,19,24,22],[24,23,24,24],[24,28,24,29],[24,31,24,33],[23,5,23,6],[23,8,23,10],[23,11,23,12],[23,13,23,14],[23,19,23,22],[23,23,23,24],[21,28,21,29],[21,31,21,33],[22,5,22,6],[22,8,22,10],[22,11,22,12],[22,13,22,14],[22,19,22,22],[22,23,22,24],[22,28,22,29],[22,31,22,33],[21,5,21,6],[21,8,21,10],[21,11,21,12],[21,13,21,14],[21,19,21,22],[21,23,21,24],[20,5,20,6],[20,8,20,10],[20,11,20,12],[20,13,20,14],[20,19,20,22],[20,23,20,24],[20,28,20,29],[20,31,20,33],[19,5,19,6],[19,8,19,10],[19,11,19,12],[19,13,19,14],[19,19,19,22],[19,23,19,24],[18,5,18,6],[18,8,18,10],[18,11,18,12],[18,13,18,14],[18,19,18,22],[18,23,18,24],[18,28,18,29],[18,31,18,33],[17,5,17,6],[17,8,17,10],[17,11,17,12],[17,13,17,14],[17,19,17,22],[17,23,17,24],[16,5,16,6],[16,8,16,10],[16,11,16,12],[16,13,16,14],[16,19,16,22],[16,23,16,24],[16,28,16,29],[16,31,16,33],[15,5,15,6],[15,8,15,10],[15,11,15,12],[15,13,15,14],[15,19,15,22],[15,23,15,24],[15,28,15,29],[15,31,15,33],[14,5,14,6],[14,8,14,10],[14,11,14,12],[14,13,14,14],[14,19,14,22],[14,23,14,24],[14,28,14,29],[14,31,14,33],[13,5,13,6],[13,8,13,10],[13,11,13,12],[13,13,13,14],[13,19,13,22],[13,23,13,24],[12,5,12,6],[12,8,12,10],[12,11,12,12],[12,13,12,14],[12,19,12,22],[12,23,12,24],[12,28,12,29],[12,31,12,33],[11,5,11,6],[11,8,11,10],[11,11,11,12],[11,13,11,14],[11,19,11,22],[11,23,11,24],[10,8,10,10],[10,11,10,12],[10,13,10,14],[10,19,10,22],[10,23,10,24],[10,28,10,29],[10,31,10,33],[9,5,9,6],[9,8,9,10],[9,11,9,12],[9,13,9,14],[9,19,9,22],[9,23,9,24],[10,5,10,6],[2,2,2,3],[2,4,2,5],[4,24,5,25],[4,28,4,29],[4,30,4,31],[5,28,5,31],[4,2,5,3],[4,18,5,18],[4,19,5,20],[4,4,5,16],[4,21,5,23],[2,6,2,22],[2,23,2,24],[7,2,8,2],[7,3,7,10],[7,11,8,12],[7,16,8,16],[7,19,8,22],[7,23,8,24],[8,5,8,6],[8,8,8,10],[8,13,8,14],[0,34,1,37],[0,17,1,18],[0,13,1,15],[0,50,1,57],[0,27,1,27],[27,57,56,57],[7,31,7,33],[8,31,8,33],[7,25,8,25],[7,26,8,26],[7,27,8,27],[7,28,7,29],[7,30,8,30],[8,28,8,29],[9,28,9,29],[9,31,9,33],[11,28,11,29],[11,31,11,33],[13,28,13,29],[13,31,13,33],[17,28,17,29],[17,31,17,33],[19,28,19,29],[19,31,19,33]]}
[null,null,null,null,null,null,null,null,null,null,null,null,null,"パスワード　",null,null,null,"10g03k0610"]
[]
[null,null,2021,null,"年",null,"桐生市バドミントン協会登録申込用紙",null,null,null,null,null,null,null,null,null,null,null,null,null,null,null,null,null,null,null,null,null,null,null,null,null,null,null,null,null,null,null,"  ←　区分をクリックしてください"]
[null,null,null,null,null,null,null,null,null,null,null,null,null,null,null,null,null,null,null,null,null,null,null,null,null,null,null,21]
[null,null,"登録団体名",null,null,null,null,null,null,null,null,null,null,null,null,null,null,null,"住所","代表者名",null,null,null,null,"住所",null,"〒",null,null,null,null,null,"固定"]
[null,null,null,null,null,null,null,null,null,null,null,null,null,null,null,null,null,null,null,null,null,null,null,null,null,null,null,null,null,null,null,null,"携帯"]
[]
[null,null,"No","登　　　録　　　　番　　　　号",null,null,null,null,null,null,null,"審判",null,null,null,null,"指導",null,null,"氏　名",null,null,null,"フリガナ",null,"性別","学年","発行","生年月日",null,"郵便番号","備　　考"]
[null,null,null,"市　バ","印","県　バ",null,"印","日　バ",null,null,null,null,"資格№",null,"有効期限",null,"資格№","有効期限",null,null,null,null,null,null,null,null,null,"（西暦）",null,null,"　　　　　　　　　　　　（ Ctrl ＋ q ）",null,null,null,null,null,null,null,null,null,null,null,null,null,null,null,null,null,null,"郵便番号",null,null,"市町名"]
[null,null,1,null,null,null,null,null,null,null,null,null,null,null,null,null,null,null,null,null,null,null,null,null,null,null,null,null,null,null,null,null,null,null,null,null,null,null,null,null,null,null,null,null,null,null,null,null,null,null,3760001,{"$f":"MID(AY10,1,3)","v":"376"},{"$f":"MID(AY10,4,5)","v":"0001"},"桐生市菱町",{"$f":"IF(AY10<>\"\",MID(AY10,1,3),\"\")","v":"376"},{"$f":"IF(BC10<>\"\",AZ10&\"-\"&BA10,\"\")","v":"376-0001"},11]
[null,null,{"$f":"C10+1","v":2},null,null,null,null,null,null,null,null,null,null,null,null,null,null,null,null,null,null,null,null,null,null,null,null,null,null,null,null,null,null,null,null,null,null,null,null,null,null,null,null,null,null,null,null,null,null,null,"3760002","376","0002","桐生市境野町","376","376-0002",11]
[null,null,{"$f":"C11+1","v":3},null,null,null,null,null,null,null,null,null,null,null,null,null,null,null,null,null,null,null,null,null,null,null,null,null,null,null,null,null,null,null,null,null,null,null,null,null,null,null,null,null,null,null,null,null,null,null,3760003,"376","0003","桐生市琴平町","376","376-0003",11]
[null,null,{"$f":"C12+1","v":4},null,null,null,null,null,null,null,null,null,null,null,null,null,null,null,null,null,null,null,null,null,null,null,null,null,null,null,null,null,null,null,null,null,null,null,null,null,null,null,null,null,null,null,null,null,null,null,"3760004","376","0004","桐生市小梅町","376","376-0004",11]
[null,null,{"$f":"C13+1","v":5},null,null,null,null,null,null,null,null,null,null,null,null,null,null,null,null,null,null,null,null,null,null,null,null,null,null,null,null,null,null,null,null,null,null,null,null,null,null,null,null,null,null,null,null,null,null,null,3760005,"376","0005","桐生市三吉町","376","376-0005",11]
[null,null,6,null,null,null,null,null,null,null,null,null,null,null,null,null,null,null,null,null,null,null,null,null,null,null,null,null,null,null,null,null,null,null,null,null,null,null,null,null,null,null,null,null,null,null,null,null,null,null,3760006,"376","0006","桐生市新宿","376","376-0006",11]
[null,null,7,null,null,null,null,null,null,null,null,null,null,null,null,null,null,null,null,null,null,null,null,null,null,null,null,null,null,null,null,null,null,null,null,null,null,null,null,null,null,null,null,null,null,null,null,null,null,null,3760007,"376","0007","桐生市浜松町","376","376-0007",11]
[null,null,8,null,null,null,null,null,null,null,null,null,null,null,null,null,null,null,null,null,null,null,null,null,null,null,null,null,null,null,null,null,null,null,null,null,null,null,null,null,null,null,null,null,null,null,null,null,null,null,3760011,"376","0011","桐生市相生町","376","376-0011",11]
[null,null,9,null,null,null,null,null,null,null,null,null,null,null,null,null,null,null,null,null,null,null,null,null,null,null,null,null,null,null,null,null,null,null,null,null,null,null,null,null,null,null,null,null,null,null,null,null,null,null,3760012,"376","0012","桐生市桜木町","376","376-0012",11]
[null,null,10,null,null,null,null,null,null,null,null,null,null,null,null,null,null,null,null,null,null,null,null,null,null,null,null,null,null,null,null,null,null,null,null,null,null,null,null,null,null,null,null,null,null,null,null,null,null,null,3760013,"376","0013","桐生市広沢町","376","376-0013",11]
[null,null,11,null,null,null,null,null,null,null,null,null,null,null,null,null,null,null,null,null,null,null,null,null,null,null,null,null,null,null,null,null,null,null,null,null,null,null,null,null,null,null,null,null,null,null,null,null,null,null,3760014,"376","0014","桐生市広沢町間ノ島","376","376-0014",11]
[null,null,12,null,null,null,null,null,null,null,null,null,null,null,null,null,null,null,null,null,null,null,null,null,null,null,null,null,null,null,null,null,null,null,null,null,null,null,null,null,null,null,null,null,null,null,null,null,null,null,3760021,"376","0021","桐生市巴町","376","376-0021",11]
[null,null,13,null,null,null,null,null,null,null,null,null,null,null,null,null,null,null,null,null,null,null,null,null,null,null,null,null,null,null,null,null,null,null,null,null,null,null,null,null,null,null,null,null,null,null,null,null,null,null,3760022,"376","0022","桐生市稲荷町","376","376-0022",11]
[null,null,14,null,null,null,null,null,null,null,null,null,null,null,null,null,null,null,null,null,null,null,null,null,null,null,null,null,null,null,null,null,null,null,null,null,null,null,null,null,null,null,null,null,null,null,null,null,null,null,3760023,"376","0023","桐生市錦町","376","376-0023",11]
[null,null,15,null,null,null,null,null,null,null,null,null,null,null,null,null,null,null,null,null,null,null,null,null,null,null,null,null,null,null,null,null,null,null,null,null,null,null,null,null,null,null,null,null,null,null,null,null,null,null,3760024,"376","0024","桐生市織姫町","376","376-0024",11]
[null,null,16,null,null,null,null,"",null,null,null,null,null,null,null,null,null,null,null,null,null,null,null,null,null,null,null,null,null,null,null,null,null,null,null,null,null,null,null,null,null,null,null,null,null,null,null,null,null,null,3760025,"376","0025","桐生市美原町","376","376-0025",11]
[null,null,17,null,null,null,null,"",null,null,null,null,null,null,null,null,null,null,null,null,null,null,null,null,null,null,null,null,null,null,null,null,null,null,null,null,null,null,null,null,null,null,null,null,null,null,null,null,null,null,3760026,"376","0026","桐生市清瀬町","376","376-0026",11]
[null,null,18,null,null,null,null,"",null,null,null,null,null,null,null,null,null,null,null,null,null,null,null,null,null,null,null,null,null,null,null,null,null,null,null,null,null,null,null,null,null,null,null,null,null,null,null,null,null,null,3760027,"376","0027","桐生市元宿町","376","376-0027",11]
[null,null,19,null,null,null,null,"",null,null,null,null,null,null,null,null,null,null,null,null,null,null,null,null,null,null,null,null,null,null,null,null,null,null,null,null,null,null,null,null,null,null,null,null,null,null,null,null,null,null,3760031,"376","0031","桐生市本町","376","376-0031",11,"ここに非表示の行がある"]
[null,null,20,null,null,null,null,"",null,null,null,null,null,null,null,null,null,null,null,null,null,null,null,null,null,null,null,null,null,null,null,null,null,null,null,null,null,null,null,null,null,null,null,null,null,null,null,null,null,null,3760032,"376","0032","桐生市東","376","376-0032",11]
[null,null,21,null,null,null,null,"",null,null,null,null,null,null,null,null,null,null,null,null,null,null,null,null,null,null,null,null,null,null,null,null,null,null,null,null,null,null,null,null,null,null,null,null,null,null,null,null,null,null,3760033,"376","0033","桐生市泉町","376","376-0033",11]
[null,null,22,null,null,null,null,null,null,null,null,null,null,null,null,null,null,null,null,null,null,null,null,null,null,null,null,null,null,null,null,null,null,null,null,null,null,null,null,null,null,null,null,null,null,null,null,null,null,null,3760034,"376","0034","桐生市東","376","376-0034",11]
[null,null,23,null,null,null,null,null,null,null,null,null,null,null,null,null,null,null,null,null,null,null,null,null,null,null,null,null,null,null,null,null,null,null,null,null,null,null,null,null,null,null,null,null,null,null,null,null,null,null,3760035,"376","0035","桐生市仲町","376","376-0035",11]
[null,null,24,null,null,null,null,null,null,null,null,null,null,null,null,null,null,null,null,null,null,null,null,null,null,null,null,null,null,null,null,null,null,null,null,null,null,null,null,null,null,null,null,null,null,null,null,null,null,null,3760036,"376","0036","桐生市川岸町","376","376-0036",11]
[null,null,25,null,null,null,null,null,null,null,null,null,null,null,null,null,null,null,null,null,null,null,null,null,null,null,null,null,null,null,null,null,null,null,null,null,null,null,null,null,null,null,null,null,null,null,null,null,null,null,3760037,"376","0037","桐生市旭町","376","376-0037",11]
[null,null,26,null,null,null,null,null,null,null,null,null,null,null,null,null,null,null,null,null,null,null,null,null,null,null,null,null,null,null,null,null,null,null,null,null,null,null,null,null,null,null,null,null,null,null,null,null,null,null,3760038,"376","0038","桐生市高砂町","376","376-0038",11]
[null,null,27,null,null,null,null,null,null,null,null,null,null,null,null,null,null,null,null,null,null,null,null,null,null,null,null,null,null,null,null,null,null,null,null,null,null,null,null,null,null,null,null,null,null,null,null,null,null,null,3760041,"376","0041","桐生市川内町","376","376-0041",11]
[null,null,28,null,null,null,null,null,null,null,null,null,null,null,null,null,null,null,null,null,null,null,null,null,null,null,null,null,null,null,null,null,null,null,null,null,null,null,null,null,null,null,null,null,null,null,null,null,null,null,3760042,"376","0042","桐生市堤町","376","376-0042",11]
[null,null,29,null,null,null,null,null,null,null,null,null,null,null,null,null,null,null,null,null,null,null,null,null,null,null,null,null,null,null,null,null,null,null,null,null,null,null,null,null,null,null,null,null,null,null,null,null,null,null,3760043,"376","0043","桐生市小曽根町","376","376-0043",11]
[null,null,30,null,null,null,null,null,null,null,null,null,null,null,null,null,null,null,null,null,null,null,null,null,null,null,null,null,null,null,null,null,null,null,null,null,null,null,null,null,null,null,null,null,null,null,null,null,null,null,3760044,"376","0044","桐生市永楽町","376","376-0044",11]
[null,null,31,null,null,null,null,null,null,null,null,null,null,null,null,null,null,null,null,null,null,null,null,null,null,null,null,null,null,null,null,null,null,null,null,null,null,null,null,null,null,null,null,null,null,null,null,null,null,null,3760045,"376","0045","桐生市末広町","376","376-0045",11]
[null,null,32,null,null,null,null,null,null,null,null,null,null,null,null,null,null,null,null,null,null,null,null,null,null,null,null,null,null,null,null,null,null,null,null,null,null,null,null,null,null,null,null,null,null,null,null,null,null,null,3760046,"376","0046","桐生市宮前町","376","376-0046",11]
[null,null,33,null,null,null,null,null,null,null,null,null,null,null,null,null,null,null,null,null,null,null,null,null,null,null,null,null,null,null,null,null,null,null,null,null,null,null,null,null,null,null,null,null,null,null,null,null,null,null,3760051,"376","0051","桐生市平井町","376","376-0051",11]
[null,null,34,null,null,null,null,null,null,null,null,null,null,null,null,null,null,null,null,null,null,null,null,null,null,null,null,null,null,null,null,null,null,null,null,null,null,null,null,null,null,null,null,null,null,null,null,null,null,null,3760052,"376","0052","桐生市天神町","376","376-0052",11]
[null,null,35,null,null,null,null,null,null,null,null,null,null,null,null,null,null,null,null,null,null,null,null,null,null,null,null,null,null,null,null,null,null,null,null,null,null,null,null,null,null,null,null,null,null,null,null,null,null,null,3760053,"376","0053","桐生市東久方町","376","376-0053",11]
[null,null,36,null,null,null,null,null,null,null,null,null,null,null,null,null,null,null,null,null,null,null,null,null,null,null,null,null,null,null,null,null,null,null,null,null,null,null,null,null,null,null,null,null,null,null,null,null,null,null,3760054,"376","0054","桐生市西久方町","376","376-0054",11]
[null,null,37,null,null,null,null,null,null,null,null,null,null,null,null,null,null,null,null,null,null,null,null,null,null,null,null,null,null,null,null,null,null,null,null,null,null,null,null,null,null,null,null,null,null,null,null,null,null,null,3760055,"376","0055","桐生市横山町","376","376-0055",11]
[null,null,38,null,null,null,null,null,null,null,null,null,null,null,null,null,null,null,null,null,null,null,null,null,null,null,null,null,null,null,null,null,null,null,null,null,null,null,null,null,null,null,null,null,null,null,null,null,null,null,3760056,"376","0056","桐生市宮本町","376","376-0056",11]
[null,null,39,null,null,null,null,null,null,null,null,null,null,null,null,null,null,null,null,null,null,null,null,null,null,null,null,null,null,null,null,null,null,null,null,null,null,null,null,null,null,null,null,null,null,null,null,null,null,null,3760121,"376","0121","桐生市新里町新川","376","376-0121",12]
[null,null,40,null,null,null,null,null,null,null,null,null,null,null,null,null,null,null,null,null,null,null,null,null,null,null,null,null,null,null,null,null,null,null,null,null,null,null,null,null,null,null,null,null,null,null,null,null,null,null,3760122,"376","0122","桐生市新里町野","376","376-0122",12]
[null,null,41,null,null,null,null,null,null,null,null,null,null,null,null,null,null,null,null,null,null,null,null,null,null,null,null,null,null,null,null,null,null,null,null,null,null,null,null,null,null,null,null,null,null,null,null,null,null,null,3760123,"376","0123","桐生市新里町武井","376","376-0123",12]
[null,null,42,null,null,null,null,null,null,null,null,null,null,null,null,null,null,null,null,null,null,null,null,null,null,null,null,null,null,null,null,null,null,null,null,null,null,null,null,null,null,null,null,null,null,null,null,null,null,null,3760124,"376","0124","桐生市新里町小林","376","376-0124",12]
[null,null,43,null,null,null,null,null,null,null,null,null,null,null,null,null,null,null,null,null,null,null,null,null,null,null,null,null,null,null,null,null,null,null,null,null,null,null,null,null,null,null,null,null,null,null,null,null,null,null,3760125,"376","0125","桐生市新里町山上","376","376-0125",12]
[null,null,44,null,null,null,null,null,null,null,null,null,null,null,null,null,null,null,null,null,null,null,null,null,null,null,null,null,null,null,null,null,null,null,null,null,null,null,null,null,null,null,null,null,null,null,null,null,null,null,3760131,"376","0131","桐生市新里町奥沢","376","376-0131",12]
[null,null,{"$f":"C53+1","v":45},null,null,null,null,null,null,null,null,null,null,null,null,null,null,null,null,null,null,null,null,null,null,null,null,null,null,null,null,null,null,null,null,null,null,null,null,null,null,null,null,null,null,null,null,null,null,null,3760131,{"$f":"MID(AY54,1,3)","v":"376"},{"$f":"MID(AY54,4,5)","v":"0131"},"桐生市新里町奥沢",{"$f":"IF(AY54<>\"\",MID(AY54,1,3),\"\")","v":"376"},{"$f":"IF(BC54<>\"\",AZ54&\"-\"&BA54,\"\")","v":"376-0131"},12]
[null,null,46,null,null,null,null,null,null,null,null,null,null,null,null,null,null,null,null,null,null,null,null,null,null,null,null,null,null,null,null,null,null,null,null,null,null,null,null,null,null,null,null,null,null,null,null,null,null,null,3760132,"376","0132","桐生市新里町鶴ケ谷","376","376-0132",12]
[null,null,47,null,null,null,null,null,null,null,null,null,null,null,null,null,null,null,null,null,null,null,null,null,null,null,null,null,null,null,null,null,null,null,null,null,null,null,null,null,null,null,null,null,null,null,null,null,null,null,3760133,"376","0133","桐生市新里町大久保","376","376-0133",12]
[null,null,48,null,null,null,null,null,null,null,null,null,null,null,null,null,null,null,null,null,null,null,null,null,null,null,null,null,null,null,null,null,null,null,null,null,null,null,null,null,null,null,null,null,null,null,null,null,null,null,3760134,"376","0134","桐生市新里町関","376","376-0134",12]
[null,null,null,null,null,null,null,null,null,null,null,null,null,null,null,null,null,null,null,null,null,null,null,null,null,null,null,null,null,null,null,null,null,null,null,null,null,null,null,null,null,null,null,null,null,null,null,null,null,null,3760135,"376","0135","桐生市新里町高泉","376","376-0135",12]
[null,null,null,null,"人数",null,"単価","金額",null,null,null,null,"曜日",null,null,null,null,null,null,null,"会　場",null,null,null,null,null,null,null,null,null,null,null,null,null,null,null,null,null,null,null,null,null,null,null,null,null,null,null,null,null,3760136,"376","0136","桐生市新里町板橋","376","376-0136",12]
[null,null,"登録料","市バ",null,null,null,null,null,null,"練習日",null,null,null,null,null,null,null,null,null,null,null,null,null,null,null,null,null,null,null,null,null,null,null,null,null,null,null,null,null,null,null,null,null,null,null,null,null,null,null,3760601,"376","0601","桐生市梅田町","376","376-0601",12]
[null,null,null,"県バのみ",null,null,null,null,null,null,null,null,null,null,null,null,null,null,null,null,null,null,null,null,null,null,null,null,null,null,null,null,null,null,null,null,null,null,null,null,null,null,null,null,null,null,null,null,null,null,3760137,"376","0137","桐生市新里町赤城山","376","376-0137",13]
[null,null,null,"日県バ",null,null,null,null,null,null,null,null,null,null,null,null,null,null,null,null,null,null,null,null,null,null,null,null,null,null,null,null,null,null,null,null,null,null,null,null,null,null,null,null,null,null,null,null,null,null,3760141,"376","0141","桐生市黒保根町水沼","376","376-0141",13]
[null,null,null,null,null,null,"合　計",null,null,null,null,null,null,null,null,null,null,null,null,null,null,null,null,null,null,null,null,null,null,null,null,null,null,null,null,null,null,null,null,null,null,null,null,null,null,null,null,null,null,null,3760142,"376","0142","桐生市黒保根町八木原","376","376-0142",13]
[null,null,null,null,null,null,null,null,null,null,null,null,null,null,null,null,null,null,null,null,null,null,null,null,null,null,null,null,null,null,null,null,null,null,null,null,null,null,null,null,null,null,null,null,null,null,null,null,null,null,3760143,"376","0143","桐生市黒保根町宿廻","376","376-0143",13]
[null,null,null,null,null,null,null,null,null,null,null,null,null,null,null,null,null,null,null,null,null,null,null,null,null,null,null,null,null,null,null,null,null,null,null,null,null,null,null,null,null,null,null,null,null,null,null,null,null,null,3760144,"376","0144","桐生市黒保根町下田沢","376","376-0144",13]
[null,null,null,null,null,null,null,null,null,null,null,null,null,null,null,null,null,null,null,null,null,null,null,null,null,null,null,null,null,null,null,null,null,null,null,null,null,null,null,null,null,null,null,null,null,null,null,null,null,null,3760145,"376","0145","桐生市黒保根町上田沢","376","376-0145",13]
[null,null,null,null,null,null,null,null,null,null,null,null,null,null,null,null,null,null,null,null,null,null,null,null,null,null,null,null,null,null,null,null,null,null,null,null,null,null,null,null,null,null,null,null,null,null,null,null,null,null,3760101,"376","0101","みどり市大間々町大間々","376","376-0101",14]
[null,null,null,null,null,null,null,null,null,null,null,null,null,null,null,null,null,null,null,null,null,null,null,null,null,null,null,null,null,null,null,null,null,null,null,null,null,null,null,null,null,null,null,null,null,null,null,null,null,null,3760102,"376","0102","みどり市大間々町桐原","376","376-0102",14]
[null,null,null,null,null,null,null,null,null,null,null,null,null,null,null,null,null,null,null,null,null,null,null,null,null,null,null,null,null,null,null,null,null,null,null,null,null,null,null,null,null,null,null,null,null,null,null,null,null,null,3760103,"376","0103","みどり市大間々町下神梅","376","376-0103",14]
[null,null,null,null,null,null,null,null,null,null,null,null,null,null,null,null,null,null,null,null,null,null,null,null,null,null,null,null,null,null,null,null,null,null,null,null,null,null,null,null,null,null,null,null,null,null,null,null,null,null,3760104,"376","0104","みどり市大間々町上神梅","376","376-0104",14]
[null,null,null,null,null,null,null,null,null,null,null,null,null,null,null,null,null,null,null,null,null,null,null,null,null,null,null,null,null,null,null,null,null,null,null,null,null,null,null,null,null,null,null,null,null,null,null,null,null,null,3760111,"376","0111","みどり市大間々町小平","376","376-0111",14]
[null,null,null,null,null,null,null,null,null,null,null,null,null,null,null,null,null,null,null,null,null,null,null,null,null,null,null,null,null,null,null,null,null,null,null,null,null,null,null,null,null,null,null,null,null,null,null,null,null,null,3760112,"376","0112","みどり市大間々町長尾根","376","376-0112",14]
[null,null,null,null,null,null,null,null,null,null,null,null,null,null,null,null,null,null,null,null,null,null,null,null,null,null,null,null,null,null,null,null,null,null,null,null,null,null,null,null,null,null,null,null,null,null,null,null,null,null,3760113,"376","0113","みどり市大間々町高津戸","376","376-0113",14]
[null,null,null,null,null,null,null,null,null,null,null,null,null,null,null,null,null,null,null,null,null,null,null,null,null,null,null,null,null,null,null,null,null,null,null,null,null,null,null,null,null,null,null,null,null,null,null,null,null,null,3760114,"376","0114","みどり市大間々町浅原","376","376-0114",14]
[null,null,null,null,null,null,null,null,null,null,null,null,null,null,null,null,null,null,null,null,null,null,null,null,null,null,null,null,null,null,null,null,null,null,null,null,null,null,null,null,null,null,null,null,null,null,null,null,null,null,3760115,{"$f":"MID(AY75,1,3)","v":"376"},{"$f":"MID(AY75,4,5)","v":"0115"},"みどり市大間々町塩原",{"$f":"IF(AY75<>\"\",MID(AY75,1,3),\"\")","v":"376"},{"$f":"IF(BC75<>\"\",AZ75&\"-\"&BA75,\"\")","v":"376-0115"},14]
[null,null,null,null,null,null,null,null,null,null,null,null,null,null,null,null,null,null,null,null,null,null,null,null,null,null,null,null,null,null,null,null,null,null,null,null,null,null,null,null,null,null,null,null,null,null,null,null,null,null,3760116,"376","0116","みどり市大間々町塩沢","376","376-0116",14]
[null,null,null,null,null,null,null,null,null,null,null,null,null,null,null,null,null,null,null,null,null,null,null,null,null,null,null,null,null,null,null,null,null,null,null,null,null,null,null,null,null,null,null,null,null,null,null,null,null,null,3792311,"379","2311","みどり市笠懸町阿左美","379","379-2311",14]
[null,null,null,null,null,null,null,null,null,null,null,null,null,null,null,null,null,null,null,null,null,null,null,null,null,null,null,null,null,null,null,null,null,null,null,null,null,null,null,null,null,null,null,null,null,null,null,null,null,null,3792312,"379","2312","みどり市笠懸町久宮","379","379-2312",14]
[null,null,null,null,null,null,null,null,null,null,null,null,null,null,null,null,null,null,null,null,null,null,null,null,null,null,null,null,null,null,null,null,null,null,null,null,null,null,null,null,null,null,null,null,null,null,null,null,null,null,3792313,"379","2313","みどり市笠懸町鹿","379","379-2313",14]
[null,null,null,null,null,null,null,null,null,null,null,null,null,null,null,null,null,null,null,null,null,null,null,null,null,null,null,null,null,null,null,null,null,null,null,null,null,null,null,null,null,null,null,null,null,null,null,null,null,null,3792314,"379","2314","みどり市笠懸町西鹿田","379","379-2314",14]
[null,null,null,null,null,null,null,null,null,null,null,null,null,null,null,null,null,null,null,null,null,null,null,null,null,null,null,null,null,null,null,null,null,null,null,null,null,null,null,null,null,null,null,null,null,null,null,null,null,null,3710013,"371","0013","前橋市西片貝町","371","371-0013",15]
[null,null,null,null,null,null,null,null,null,null,null,null,null,null,null,null,null,null,null,null,null,null,null,null,null,null,null,null,null,null,null,null,null,null,null,null,null,null,null,null,null,null,null,null,null,null,null,null,null,null,3710017,"371","0017","前橋市日吉町","371","371-0017",15]
[null,null,null,null,null,null,null,null,null,null,null,null,null,null,null,null,null,null,null,null,null,null,null,null,null,null,null,null,null,null,null,null,null,null,null,null,null,null,null,null,null,null,null,null,null,null,null,null,null,null,3710044,"371","0044","前橋市荒牧町","371","371-0044",15]
[null,null,null,null,null,null,null,null,null,null,null,null,null,null,null,null,null,null,null,null,null,null,null,null,null,null,null,null,null,null,null,null,null,null,null,null,null,null,null,null,null,null,null,null,null,null,null,null,null,null,3710104,"371","0104","前橋市富士見町時沢","371","371-0104",15]
[null,null,null,null,null,null,null,null,null,null,null,null,null,null,null,null,null,null,null,null,null,null,null,null,null,null,null,null,null,null,null,null,null,null,null,null,null,null,null,null,null,null,null,null,null,null,null,null,null,null,3710203,"371","0203","前橋市粕川町月田","371","371-0203",15]
[null,null,null,null,null,null,null,null,null,null,null,null,null,null,null,null,null,null,null,null,null,null,null,null,null,null,null,null,null,null,null,null,null,null,null,null,null,null,null,null,null,null,null,null,null,null,null,null,null,null,"3710232","371","0232","前橋市茂木町","371","371-0232",15]
[null,null,null,null,null,null,null,null,null,null,null,null,null,null,null,null,null,null,null,null,null,null,null,null,null,null,null,null,null,null,null,null,null,null,null,null,null,null,null,null,null,null,null,null,null,null,null,null,null,null,3710244,371,"0244","前橋市鼻毛石町","371","371-0244",15]
[null,null,null,null,null,null,null,null,null,null,null,null,null,null,null,null,null,null,null,null,null,null,null,null,null,null,null,null,null,null,null,null,null,null,null,null,null,null,null,null,null,null,null,null,null,null,null,null,null,null,3710801,{"$f":"MID(AY88,1,3)","v":"371"},{"$f":"MID(AY88,4,5)","v":"0801"},"前橋市文京町","371","371-0801",15]
[null,null,null,null,null,null,null,null,null,null,null,null,null,null,null,null,null,null,null,null,null,null,null,null,null,null,null,null,null,null,null,null,null,null,null,null,null,null,null,null,null,null,null,null,null,null,null,null,null,null,3710802,{"$f":"MID(AY89,1,3)","v":"371"},{"$f":"MID(AY89,4,5)","v":"0802"},"前橋市天川町","371","371-0802",15]
[null,null,null,null,null,null,null,null,null,null,null,null,null,null,null,null,null,null,null,null,null,null,null,null,null,null,null,null,null,null,null,null,null,null,null,null,null,null,null,null,null,null,null,null,null,null,null,null,null,null,3710812,{"$f":"MID(AY90,1,3)","v":"371"},{"$f":"MID(AY90,4,5)","v":"0812"},"前橋市広瀬町","371","371-0812",15]
[null,null,null,null,null,null,null,null,null,null,null,null,null,null,null,null,null,null,null,null,null,null,null,null,null,null,null,null,null,null,null,null,null,null,null,null,null,null,null,null,null,null,null,null,null,null,null,null,null,null,3792113,{"$f":"MID(AY91,1,3)","v":"379"},{"$f":"MID(AY91,4,5)","v":"2113"},"前橋市下増田町","379","379-2113",15]
[null,null,null,null,null,null,null,null,null,null,null,null,null,null,null,null,null,null,null,null,null,null,null,null,null,null,null,null,null,null,null,null,null,null,null,null,null,null,null,null,null,null,null,null,null,null,null,null,null,null,3792123,{"$f":"MID(AY92,1,3)","v":"379"},{"$f":"MID(AY92,4,5)","v":"2123"},"前橋市山王町","379","379-2123",15]
[null,null,null,null,null,null,null,null,null,null,null,null,null,null,null,null,null,null,null,null,null,null,null,null,null,null,null,null,null,null,null,null,null,null,null,null,null,null,null,null,null,null,null,null,null,null,null,null,null,null,3792154,379,2154,"前橋市天川大島町","379","379-2154",15]
[null,null,null,null,null,null,null,null,null,null,null,null,null,null,null,null,null,null,null,null,null,null,null,null,null,null,null,null,null,null,null,null,null,null,null,null,null,null,null,null,null,null,null,null,null,null,null,null,null,null,3700021,{"$f":"MID(AY94,1,3)","v":"370"},{"$f":"MID(AY94,4,5)","v":"0021"},"高崎市西横手町","370","370-0021",16]
[null,null,null,null,null,null,null,null,null,null,null,null,null,null,null,null,null,null,null,null,null,null,null,null,null,null,null,null,null,null,null,null,null,null,null,null,null,null,null,null,null,null,null,null,null,null,null,null,null,null,3700882,"370","0882","高崎市金井淵町","370","370-0882",16]
[null,null,null,null,null,null,null,null,null,null,null,null,null,null,null,null,null,null,null,null,null,null,null,null,null,null,null,null,null,null,null,null,null,null,null,null,null,null,null,null,null,null,null,null,null,null,null,null,null,null,"3700311","370","0311","太田市新田瑞木町","370","370-0311",17]
[null,null,null,null,null,null,null,null,null,null,null,null,null,null,null,null,null,null,null,null,null,null,null,null,null,null,null,null,null,null,null,null,null,null,null,null,null,null,null,null,null,null,null,null,null,null,null,null,null,null,3700312,"370","0312","太田市新田町村田","370","370-0312",17]
[null,null,null,null,null,null,null,null,null,null,null,null,null,null,null,null,null,null,null,null,null,null,null,null,null,null,null,null,null,null,null,null,null,null,null,null,null,null,null,null,null,null,null,null,null,null,null,null,null,null,3700346,"370","0346","太田市新田町上田中","370","370-0346",17]
[null,null,null,null,null,null,null,null,null,null,null,null,null,null,null,null,null,null,null,null,null,null,null,null,null,null,null,null,null,null,null,null,null,null,null,null,null,null,null,null,null,null,null,null,null,null,null,null,null,null,3700416,"370","0416","太田市前島町","370","370-0416",17]
[null,null,null,null,null,null,null,null,null,null,null,null,null,null,null,null,null,null,null,null,null,null,null,null,null,null,null,null,null,null,null,null,null,null,null,null,null,null,null,null,null,null,null,null,null,null,null,null,null,null,3730005,"373","0005","太田市鶴生田","373","373-0005",17]
[null,null,null,null,null,null,null,null,null,null,null,null,null,null,null,null,null,null,null,null,null,null,null,null,null,null,null,null,null,null,null,null,null,null,null,null,null,null,null,null,null,null,null,null,null,null,null,null,null,null,"3730023","373","0023","太田市富若町","373","373-0023",17]
[null,null,null,null,null,null,null,null,null,null,null,null,null,null,null,null,null,null,null,null,null,null,null,null,null,null,null,null,null,null,null,null,null,null,null,null,null,null,null,null,null,null,null,null,null,null,null,null,null,null,3730025,"373","0025","太田市熊野町","373","373-0025",17]
[null,null,null,null,null,null,null,null,null,null,null,null,null,null,null,null,null,null,null,null,null,null,null,null,null,null,null,null,null,null,null,null,null,null,null,null,null,null,null,null,null,null,null,null,null,null,null,null,null,null,"3730036","373","0036","太田市由良町","373","373-0036",17]
[null,null,null,null,null,null,null,null,null,null,null,null,null,null,null,null,null,null,null,null,null,null,null,null,null,null,null,null,null,null,null,null,null,null,null,null,null,null,null,null,null,null,null,null,null,null,null,null,null,null,3730053,"373","0053","太田市鳥山町","373","373-0053",17]
[null,null,null,null,null,null,null,null,null,null,null,null,null,null,null,null,null,null,null,null,null,null,null,null,null,null,null,null,null,null,null,null,null,null,null,null,null,null,null,null,null,null,null,null,null,null,null,null,null,null,"3730055","373","0055","太田市大島町","373","373-0055",17]
[null,null,null,null,null,null,null,null,null,null,null,null,null,null,null,null,null,null,null,null,null,null,null,null,null,null,null,null,null,null,null,null,null,null,null,null,null,null,null,null,null,null,null,null,null,null,null,null,null,null,3730061,"373","0061","太田市鳥山上町","373","373-0061",17]
[null,null,null,null,null,null,null,null,null,null,null,null,null,null,null,null,null,null,null,null,null,null,null,null,null,null,null,null,null,null,null,null,null,null,null,null,null,null,null,null,null,null,null,null,null,null,null,null,null,null,3730062,"373","0062","太田市鳥山中町","373","373-0062",17]
[null,null,null,null,null,null,null,null,null,null,null,null,null,null,null,null,null,null,null,null,null,null,null,null,null,null,null,null,null,null,null,null,null,null,null,null,null,null,null,null,null,null,null,null,null,null,null,null,null,null,"3730063","373","0063","太田市烏山下町","373","373-0063",17]
[null,null,null,null,null,null,null,null,null,null,null,null,null,null,null,null,null,null,null,null,null,null,null,null,null,null,null,null,null,null,null,null,null,null,null,null,null,null,null,null,null,null,null,null,null,null,null,null,null,null,3730802,"373","0802","太田市矢場新町","373","373-0802",17]
[null,null,null,null,null,null,null,null,null,null,null,null,null,null,null,null,null,null,null,null,null,null,null,null,null,null,null,null,null,null,null,null,null,null,null,null,null,null,null,null,null,null,null,null,null,null,null,null,null,null,3730808,"373","0808","太田市石原街","373","373-0808",17]
[null,null,null,null,null,null,null,null,null,null,null,null,null,null,null,null,null,null,null,null,null,null,null,null,null,null,null,null,null,null,null,null,null,null,null,null,null,null,null,null,null,null,null,null,null,null,null,null,null,null,"3730817","373","0817","太田市飯塚町","373","373-0817",17]
[null,null,null,null,null,null,null,null,null,null,null,null,null,null,null,null,null,null,null,null,null,null,null,null,null,null,null,null,null,null,null,null,null,null,null,null,null,null,null,null,null,null,null,null,null,null,null,null,null,null,3730818,"373","0818","太田市小舞木町","373","373-0818",17]
[null,null,null,null,null,null,null,null,null,null,null,null,null,null,null,null,null,null,null,null,null,null,null,null,null,null,null,null,null,null,null,null,null,null,null,null,null,null,null,null,null,null,null,null,null,null,null,null,null,null,3730842,"373","0842","太田市細谷町","373","373-0842",17]
[null,null,null,null,null,null,null,null,null,null,null,null,null,null,null,null,null,null,null,null,null,null,null,null,null,null,null,null,null,null,null,null,null,null,null,null,null,null,null,null,null,null,null,null,null,null,null,null,null,null,3730847,"373","0847","太田市西新町","373","373-0847",17]
[null,null,null,null,null,null,null,null,null,null,null,null,null,null,null,null,null,null,null,null,null,null,null,null,null,null,null,null,null,null,null,null,null,null,null,null,null,null,null,null,null,null,null,null,null,null,null,null,null,null,"3730851","373","0851","太田市飯田町","373","373-0851",17]
[null,null,null,null,null,null,null,null,null,null,null,null,null,null,null,null,null,null,null,null,null,null,null,null,null,null,null,null,null,null,null,null,null,null,null,null,null,null,null,null,null,null,null,null,null,null,null,null,null,null,3792301,"379","2301","太田市薮塚町","379","379-2301",17]
[null,null,null,null,null,null,null,null,null,null,null,null,null,null,null,null,null,null,null,null,null,null,null,null,null,null,null,null,null,null,null,null,null,null,null,null,null,null,null,null,null,null,null,null,null,null,null,null,null,null,3792302,"379","2302","太田市山之神町","379","379-2302",17]
[null,null,null,null,null,null,null,null,null,null,null,null,null,null,null,null,null,null,null,null,null,null,null,null,null,null,null,null,null,null,null,null,null,null,null,null,null,null,null,null,null,null,null,null,null,null,null,null,null,null,3792303,"379","2303","太田市寄合町","379","379-2303",17]
[null,null,null,null,null,null,null,null,null,null,null,null,null,null,null,null,null,null,null,null,null,null,null,null,null,null,null,null,null,null,null,null,null,null,null,null,null,null,null,null,null,null,null,null,null,null,null,null,null,null,3792304,"379","2304","太田市大原町","379","379-2304",17]
[null,null,null,null,null,null,null,null,null,null,null,null,null,null,null,null,null,null,null,null,null,null,null,null,null,null,null,null,null,null,null,null,null,null,null,null,null,null,null,null,null,null,null,null,null,null,null,null,null,null,3792305,"379","2305","太田市六千石町","379","379-2305",17]
[null,null,null,null,null,null,null,null,null,null,null,null,null,null,null,null,null,null,null,null,null,null,null,null,null,null,null,null,null,null,null,null,null,null,null,null,null,null,null,null,null,null,null,null,null,null,null,null,null,null,3792306,"379","2306","太田市大久保町","379","379-2306",17]
[null,null,null,null,null,null,null,null,null,null,null,null,null,null,null,null,null,null,null,null,null,null,null,null,null,null,null,null,null,null,null,null,null,null,null,null,null,null,null,null,null,null,null,null,null,null,null,null,null,null,3700104,"370","0104","伊勢崎市境木島","370","370-0104",18]
[null,null,null,null,null,null,null,null,null,null,null,null,null,null,null,null,null,null,null,null,null,null,null,null,null,null,null,null,null,null,null,null,null,null,null,null,null,null,null,null,null,null,null,null,null,null,null,null,null,null,"3720002","372","0002","伊勢崎市堤西町","372","372-0002",18]
[null,null,null,null,null,null,null,null,null,null,null,null,null,null,null,null,null,null,null,null,null,null,null,null,null,null,null,null,null,null,null,null,null,null,null,null,null,null,null,null,null,null,null,null,null,null,null,null,null,null,3720056,"372","0056","伊勢崎市喜多町","372","372-0056",18]
[null,null,null,null,null,null,null,null,null,null,null,null,null,null,null,null,null,null,null,null,null,null,null,null,null,null,null,null,null,null,null,null,null,null,null,null,null,null,null,null,null,null,null,null,null,null,null,null,null,null,3720812,"372","0812","伊勢崎市連取町","372","372-0812",18]
[null,null,null,null,null,null,null,null,null,null,null,null,null,null,null,null,null,null,null,null,null,null,null,null,null,null,null,null,null,null,null,null,null,null,null,null,null,null,null,null,null,null,null,null,null,null,null,null,null,null,"3720813","372","0813","伊勢崎市韮塚町","372","372-0813",18]
[null,null,null,null,null,null,null,null,null,null,null,null,null,null,null,null,null,null,null,null,null,null,null,null,null,null,null,null,null,null,null,null,null,null,null,null,null,null,null,null,null,null,null,null,null,null,null,null,null,null,3720824,"372","0824","伊勢崎市柴","372","372-0824",18]
[null,null,null,null,null,null,null,null,null,null,null,null,null,null,null,null,null,null,null,null,null,null,null,null,null,null,null,null,null,null,null,null,null,null,null,null,null,null,null,null,null,null,null,null,null,null,null,null,null,null,3792203,"379","2203","伊勢崎市曲沢町","379","379-2203",18]
[null,null,null,null,null,null,null,null,null,null,null,null,null,null,null,null,null,null,null,null,null,null,null,null,null,null,null,null,null,null,null,null,null,null,null,null,null,null,null,null,null,null,null,null,null,null,null,null,null,null,"3792211","379","2211","伊勢崎市市場町","379","379-2211",18]
[null,null,null,null,null,null,null,null,null,null,null,null,null,null,null,null,null,null,null,null,null,null,null,null,null,null,null,null,null,null,null,null,null,null,null,null,null,null,null,null,null,null,null,null,null,null,null,null,null,null,3792221,"379","2221","伊勢崎市国定町","379","379-2221",18]
[null,null,null,null,null,null,null,null,null,null,null,null,null,null,null,null,null,null,null,null,null,null,null,null,null,null,null,null,null,null,null,null,null,null,null,null,null,null,null,null,null,null,null,null,null,null,null,null,null,null,3792222,"379","2222","伊勢崎市田部井町","379","379-2222",18]
[null,null,null,null,null,null,null,null,null,null,null,null,null,null,null,null,null,null,null,null,null,null,null,null,null,null,null,null,null,null,null,null,null,null,null,null,null,null,null,null,null,null,null,null,null,null,null,null,null,null,3792224,"379","2224","伊勢崎市西小保方町","379","379-2224",18]
[null,null,null,null,null,null,null,null,null,null,null,null,null,null,null,null,null,null,null,null,null,null,null,null,null,null,null,null,null,null,null,null,null,null,null,null,null,null,null,null,null,null,null,null,null,null,null,null,null,null,3792232,"379","2232","伊勢崎市小泉町","379","379-2232",18]
[null,null,null,null,null,null,null,null,null,null,null,null,null,null,null,null,null,null,null,null,null,null,null,null,null,null,null,null,null,null,null,null,null,null,null,null,null,null,null,null,null,null,null,null,null,null,null,null,null,null,"3700501","370","0501","邑楽郡千代田町福島","370","370-0501",19]
[null,null,null,null,null,null,null,null,null,null,null,null,null,null,null,null,null,null,null,null,null,null,null,null,null,null,null,null,null,null,null,null,null,null,null,null,null,null,null,null,null,null,null,null,null,null,null,null,null,null,3700503,"370","0503","邑楽郡千代田町赤岩","370","370-0503",19]
[null,null,null,null,null,null,null,null,null,null,null,null,null,null,null,null,null,null,null,null,null,null,null,null,null,null,null,null,null,null,null,null,null,null,null,null,null,null,null,null,null,null,null,null,null,null,null,null,null,null,"3700516","370","0516","邑楽郡大泉町中央","370","370-0516",19]
[null,null,null,null,null,null,null,null,null,null,null,null,null,null,null,null,null,null,null,null,null,null,null,null,null,null,null,null,null,null,null,null,null,null,null,null,null,null,null,null,null,null,null,null,null,null,null,null,null,null,"3700524","370","0524","邑楽郡大泉町古海","370","370-0524",19]
[null,null,null,null,null,null,null,null,null,null,null,null,null,null,null,null,null,null,null,null,null,null,null,null,null,null,null,null,null,null,null,null,null,null,null,null,null,null,null,null,null,null,null,null,null,null,null,null,null,null,3700603,"370","0603","邑楽郡邑楽町中野","370","370-0603",19]
[null,null,null,null,null,null,null,null,null,null,null,null,null,null,null,null,null,null,null,null,null,null,null,null,null,null,null,null,null,null,null,null,null,null,null,null,null,null,null,null,null,null,null,null,null,null,null,null,null,null,3700615,"370","0615","邑楽郡邑楽町篠塚",{"$f":"IF(AY139<>\"\",MID(AY139,1,3),\"\")","v":"370"},{"$f":"IF(BC139<>\"\",AZ139&\"-\"&BA139,\"\")","v":"370-0615"},19]
[null,null,null,null,null,null,null,null,null,null,null,null,null,null,null,null,null,null,null,null,null,null,null,null,null,null,null,null,null,null,null,null,null,null,null,null,null,null,null,null,null,null,null,null,null,null,null,null,null,null,"3702324","370","2324","富岡市南後箇","370","370-2324",20]
[null,null,null,null,null,null,null,null,null,null,null,null,null,null,null,null,null,null,null,null,null,null,null,null,null,null,null,null,null,null,null,null,null,null,null,null,null,null,null,null,null,null,null,null,null,null,null,null,null,null,3260006,"326","0006","足利市利保町","326","326-0006",21]
[null,null,null,null,null,null,null,null,null,null,null,null,null,null,null,null,null,null,null,null,null,null,null,null,null,null,null,null,null,null,null,null,null,null,null,null,null,null,null,null,null,null,null,null,null,null,null,null,null,null,3260011,"326","0011","足利市大沼田町","326","326-0011",21]
[null,null,null,null,null,null,null,null,null,null,null,null,null,null,null,null,null,null,null,null,null,null,null,null,null,null,null,null,null,null,null,null,null,null,null,null,null,null,null,null,null,null,null,null,null,null,null,null,null,null,"3260141","326","0141","足利市小俣町","326","326-0141",21]
[null,null,null,null,null,null,null,null,null,null,null,null,null,null,null,null,null,null,null,null,null,null,null,null,null,null,null,null,null,null,null,null,null,null,null,null,null,null,null,null,null,null,null,null,null,null,null,null,null,null,3260142,"326","0142","足利市小俣南町","326","326-0142",21]
[null,null,null,null,null,null,null,null,null,null,null,null,null,null,null,null,null,null,null,null,null,null,null,null,null,null,null,null,null,null,null,null,null,null,null,null,null,null,null,null,null,null,null,null,null,null,null,null,null,null,"3260143","326","0143","足利市葉鹿町","326","326-0143",21]
[null,null,null,null,null,null,null,null,null,null,null,null,null,null,null,null,null,null,null,null,null,null,null,null,null,null,null,null,null,null,null,null,null,null,null,null,null,null,null,null,null,null,null,null,null,null,null,null,null,null,"3260328","326","0328","足利市県町","326","326-0328",21]
[null,null,null,null,null,null,null,null,null,null,null,null,null,null,null,null,null,null,null,null,null,null,null,null,null,null,null,null,null,null,null,null,null,null,null,null,null,null,null,null,null,null,null,null,null,null,null,null,null,null,3260335,"326","0335","足利市上渋垂","326","326-0335",21]
[null,null,null,null,null,null,null,null,null,null,null,null,null,null,null,null,null,null,null,null,null,null,null,null,null,null,null,null,null,null,null,null,null,null,null,null,null,null,null,null,null,null,null,null,null,null,null,null,null,null,3260338,"326","0338","足利市福居町","326","326-0338",21]
[null,null,null,null,null,null,null,null,null,null,null,null,null,null,null,null,null,null,null,null,null,null,null,null,null,null,null,null,null,null,null,null,null,null,null,null,null,null,null,null,null,null,null,null,null,null,null,null,null,null,"3260803","326","0803","足利市家富町","326","326-0803",21]
[null,null,null,null,null,null,null,null,null,null,null,null,null,null,null,null,null,null,null,null,null,null,null,null,null,null,null,null,null,null,null,null,null,null,null,null,null,null,null,null,null,null,null,null,null,null,null,null,null,null,3260807,"326","0807","足利市大正町","326","326-0807",21]
[null,null,null,null,null,null,null,null,null,null,null,null,null,null,null,null,null,null,null,null,null,null,null,null,null,null,null,null,null,null,null,null,null,null,null,null,null,null,null,null,null,null,null,null,null,null,null,null,null,null,3260808,"326","0808","足利市本城","326","326-0808",21]
[null,null,null,null,null,null,null,null,null,null,null,null,null,null,null,null,null,null,null,null,null,null,null,null,null,null,null,null,null,null,null,null,null,null,null,null,null,null,null,null,null,null,null,null,null,null,null,null,null,null,3260843,"326","0843","足利市五十部町","326","326-0843",21]
[null,null,null,null,null,null,null,null,null,null,null,null,null,null,null,null,null,null,null,null,null,null,null,null,null,null,null,null,null,null,null,null,null,null,null,null,null,null,null,null,null,null,null,null,null,null,null,null,null,null,"3260844","326","0844","足利市鹿島町","326","326-0844",21]
[null,null,null,null,null,null,null,null,null,null,null,null,null,null,null,null,null,null,null,null,null,null,null,null,null,null,null,null,null,null,null,null,null,null,null,null,null,null,null,null,null,null,null,null,null,null,null,null,null,null,"3260846","326","0846","足利市山下町","326","326-0846",21]
[null,null,null,null,null,null,null,null,null,null,null,null,null,null,null,null,null,null,null,null,null,null,null,null,null,null,null,null,null,null,null,null,null,null,null,null,null,null,null,null,null,null,null,null,null,null,null,null,null,null,3270103,327,"0103","佐野市石塚町","327","327-0103",29]
[null,null,null,null,null,null,null,null,null,null,null,null,null,null,null,null,null,null,null,null,null,null,null,null,null,null,null,null,null,null,null,null,null,null,null,null,null,null,null,null,null,null,null,null,null,null,null,null,null,null,3270843,{"$f":"MID(AY156,1,3)","v":"327"},{"$f":"MID(AY156,4,5)","v":"0843"},"佐野市堀込町","327","327-0843",29]
[null,null,null,null,null,null,null,null,null,null,null,null,null,null,null,null,null,null,null,null,null,null,null,null,null,null,null,null,null,null,null,null,null,null,null,null,null,null,null,null,null,null,null,null,null,null,null,null,null,null,3294309,{"$f":"MID(AY157,1,3)","v":"329"},{"$f":"MID(AY157,4,5)","v":"4309"},"下都賀郡岩舟町畳岡","329","329-4309",29]
[null,null,null,null,null,null,null,null,null,null,null,null,null,null,null,null,null,null,null,null,null,null,null,null,null,null,null,null,null,null,null,null,null,null,null,null,null,null,null,null,null,null,null,null,null,null,null,null,null,null,3720002,372,"0002","佐野市並木町","372","372-0002",29]
[null,null,null,null,null,null,null,null,null,null,null,null,null,null,null,null,null,null,null,null,null,null,null,null,null,null,null,null,null,null,null,null,null,null,null,null,null,null,null,null,null,null,null,null,null,null,null,null,null,null,3330866,{"$f":"MID(AY159,1,3)","v":"333"},{"$f":"MID(AY159,4,5)","v":"0866"},"川口市芝","333","333-0866",99]
[null,null,null,null,null,null,null,null,null,null,null,null,null,null,null,null,null,null,null,null,null,null,null,null,null,null,null,null,null,null,null,null,null,null,null,null,null,null,null,null,null,null,null,null,null,null,null,null,null,null,"3450802",{"$f":"MID(AY160,1,3)","v":"345"},{"$f":"MID(AY160,4,5)","v":"0802"},"南埼玉郡宮代町中島","345","345-0802",99]
[null,null,null,null,null,null,null,null,null,null,null,null,null,null,null,null,null,null,null,null,null,null,null,null,null,null,null,null,null,null,null,null,null,null,null,null,null,null,null,null,null,null,null,null,null,null,null,null,null,null,3690301,{"$f":"MID(AY161,1,3)","v":"369"},{"$f":"MID(AY161,4,5)","v":"0301"},"児玉郡上里町","369","369-0301",99]
[]
[]
[]
[]
[]
[]
[]
[]
[]
[]
[]
[]
[]
[]
[]
[]
[]
[]
[]
[]
[]
[]
[]
[]
[]
[]
[]
[]
[null,null,null,null,null,null,null,null,null,null,null,null,null,null,null,null,null,null,null,null,null,null,null,null,null,null,null,null,null,null,null,null,null,null,null,null,null,null,null,null,null,null,null,null,null,null,null,null,null,null,null,{"$f":"MID(AY190,1,3)","v":""},{"$f":"MID(AY190,4,5)","v":""},null,{"$f":"IF(AY190<>\"\",MID(AY190,1,3),\"\")","v":""},{"$f":"IF(BC190<>\"\",AZ190&\"-\"&BA190,\"\")","v":""}]
[null,null,null,null,null,null,null,null,null,null,null,null,null,null,null,null,null,null,null,null,null,null,null,null,null,null,null,null,null,null,null,null,null,null,null,null,null,null,null,null,null,null,null,null,null,null,null,null,null,null,null,"","",null,"",""]
[null,null,null,null,null,null,null,null,null,null,null,null,null,null,null,null,null,null,null,null,null,null,null,null,null,null,null,null,null,null,null,null,null,null,null,null,null,null,null,null,null,null,null,null,null,null,null,null,null,null,null,"","",null,"",""]
[null,null,null,null,null,null,null,null,null,null,null,null,null,null,null,null,null,null,null,null,null,null,null,null,null,null,null,null,null,null,null,null,null,null,null,null,null,null,null,null,null,null,null,null,null,null,null,null,null,null,null,"","",null,"",""]
[null,null,null,null,null,null,null,null,null,null,null,null,null,null,null,null,null,null,null,null,null,null,null,null,null,null,null,null,null,null,null,null,null,null,null,null,null,null,null,null,null,null,null,null,null,null,null,null,null,null,null,"","",null,"",""]
[null,null,null,null,null,null,null,null,null,null,null,null,null,null,null,null,null,null,null,null,null,null,null,null,null,null,null,null,null,null,null,null,null,null,null,null,null,null,null,null,null,null,null,null,null,null,null,null,null,null,null,"","",null,"",""]
[null,null,null,null,null,null,null,null,null,null,null,null,null,null,null,null,null,null,null,null,null,null,null,null,null,null,null,null,null,null,null,null,null,null,null,null,null,null,null,null,null,null,null,null,null,null,null,null,null,null,null,{"$f":"MID(AY209,1,3)","v":""},{"$f":"MID(AY209,4,5)","v":""},null,{"$f":"IF(AY209<>\"\",MID(AY209,1,3),\"\")","v":""},""]

{"sheet":"出力用審判用紙 ","index":1,"n_rows":196,"n_cols":58,"rows_kept":196,"cut":false,"hidden":false,"merged":[[0,13,0,15],[0,17,0,18],[0,27,1,27],[0,34,0,37],[1,13,1,15],[1,17,1,18],[1,34,1,37],[1,50,1,57],[2,2,2,3],[2,4,2,5],[2,6,2,22],[2,23,2,24],[4,2,5,3],[4,4,5,16],[4,18,5,18],[4,19,5,20],[4,21,5,23],[4,24,5,25],[4,28,4,29],[4,30,4,31],[5,28,5,31],[7,2,8,2],[7,3,7,10],[7,11,8,12],[7,16,8,16],[7,19,8,22],[7,23,8,24],[8,5,8,6],[8,8,8,10],[8,13,8,14],[8,28,8,29],[8,31,8,33],[8,50,8,52],[7,25,8,25],[7,26,8,26],[7,27,8,27],[7,28,7,29],[7,30,8,30],[7,31,7,33],[9,28,9,29],[9,31,9,33],[10,5,10,6],[10,8,10,10],[10,11,10,12],[10,13,10,14],[10,19,10,22],[10,23,10,24],[10,28,10,29],[10,31,10,33],[9,5,9,6],[9,8,9,10],[9,11,9,12],[9,13,9,14],[9,19,9,22],[9,23,9,24],[11,28,11,29],[11,31,11,33],[12,5,12,6],[12,8,12,10],[12,11,12,12],[12,13,12,14],[12,19,12,22],[12,23,12,24],[12,28,12,29],[12,31,12,33],[11,5,11,6],[11,8,11,10],[11,11,11,12],[11,13,11,14],[11,19,11,22],[11,23,11,24],[13,28,13,29],[13,31,13,33],[14,5,14,6],[14,8,14,10],[14,11,14,12],[14,13,14,14],[14,19,14,22],[14,23,14,24],[14,28,14,29],[14,31,14,33],[13,5,13,6],[13,8,13,10],[13,11,13,12],[13,13,13,14],[13,19,13,22],[13,23,13,24],[15,28,15,29],[15,31,15,33],[16,5,16,6],[16,8,16,10],[16,11,16,12],[16,13,16,14],[16,19,16,22],[16,23,16,24],[16,28,16,29],[16,31,16,33],[15,5,15,6],[15,8,15,10],[15,11,15,12],[15,13,15,14],[15,19,15,22],[15,23,15,24],[17,28,17,29],[17,31,17,33],[18,5,18,6],[18,8,18,10],[18,11,18,12],[18,13,18,14],[18,19,18,22],[18,23,18,24],[18,28,18,29],[18,31,18,33],[17,5,17,6],[17,8,17,10],[17,11,17,12],[17,13,17,14],[17,19,17,22],[17,23,17,24],[19,28,19,29],[19,31,19,33],[20,5,20,6],[20,8,20,10],[20,11,20,12],[20,13,20,14],[20,19,20,22],[20,23,20,24],[20,28,20,29],[20,31,20,33],[19,5,19,6],[19,8,19,10],[19,11,19,12],[19,13,19,14],[19,19,19,22],[19,23,19,24],[21,28,21,29],[21,31,21,33],[22,5,22,6],[22,8,22,10],[22,11,22,12],[22,13,22,14],[22,19,22,22],[22,23,22,24],[22,28,22,29],[22,31,22,33],[21,5,21,6],[21,8,21,10],[21,11,21,12],[21,13,21,14],[21,19,21,22],[21,23,21,24],[23,28,23,29],[23,31,23,33],[24,5,24,6],[24,8,24,10],[24,11,24,12],[24,13,24,14],[24,19,24,22],[24,23,24,24],[24,28,24,29],[24,31,24,33],[23,5,23,6],[23,8,23,10],[23,11,23,12],[23,13,23,14],[23,19,23,22],[23,23,23,24],[25,28,25,29],[25,31,25,33],[26,5,26,6],[26,8,26,10],[26,11,26,12],[26,13,26,14],[26,19,26,22],[26,23,26,24],[26,28,26,29],[26,31,26,33],[25,5,25,6],[25,8,25,10],[25,11,25,12],[25,13,25,14],[25,19,25,22],[25,23,25,24],[26,38,26,41],[27,5,27,6],[27,8,27,10],[27,11,27,12],[27,13,27,14],[27,19,27,22],[27,23,27,24],[27,28,27,29],[27,31,27,33],[27,57,56,57],[28,5,28,6],[28,8,28,10],[28,11,28,12],[28,13,28,14],[28,19,28,22],[28,23,28,24],[28,28,28,29],[28,31,28,33],[28,38,28,41],[29,28,29,29],[29,31,29,33],[30,5,30,6],[30,8,30,10],[30,11,30,12],[30,13,30,14],[30,19,30,22],[30,23,30,24],[30,28,30,29],[30,31,30,33],[29,5,29,6],[29,8,29,10],[29,11,29,12],[29,13,29,14],[29,19,29,22],[29,23,29,24],[31,28,31,29],[31,31,31,33],[32,5,32,6],[32,8,32,10],[32,11,32,12],[32,13,32,14],[32,19,32,22],[32,23,32,24],[32,28,32,29],[32,31,32,33],[31,5,31,6],[31,8,31,10],[31,11,31,12],[31,13,31,14],[31,19,31,22],[31,23,31,24],[33,28,33,29],[33,31,33,33],[34,5,34,6],[34,8,34,10],[34,11,34,12],[34,13,34,14],[34,19,34,22],[34,23,34,24],[34,28,34,29],[34,31,34,33],[33,5,33,6],[33,8,33,10],[33,11,33,12],[33,13,33,14],[33,19,33,22],[33,23,33,24],[35,28,35,29],[35,31,35,33],[36,5,36,6],[36,8,36,10],[36,11,36,12],[36,13,36,14],[36,19,36,22],[36,23,36,24],[36,28,36,29],[36,31,36,33],[35,5,35,6],[35,8,35,10],[35,11,35,12],[35,13,35,14],[35,19,35,22],[35,23,35,24],[37,28,37,29],[37,31,37,33],[38,5,38,6],[38,8,38,10],[38,11,38,12],[38,13,38,14],[38,19,38,22],[38,23,38,24],[38,28,38,29],[38,31,38,33],[37,5,37,6],[37,8,37,10],[37,11,37,12],[37,13,37,14],[37,19,37,22],[37,23,37,24],[39,28,39,29],[39,31,39,33],[40,5,40,6],[40,8,40,10],[40,11,40,12],[40,13,40,14],[40,19,40,22],[40,23,40,24],[40,28,40,29],[40,31,40,33],[39,5,39,6],[39,8,39,10],[39,11,39,12],[39,13,39,14],[39,19,39,22],[39,23,39,24],[41,28,41,29],[41,31,41,33],[42,5,42,6],[42,8,42,10],[42,11,42,12],[42,13,42,14],[42,19,42,22],[42,23,42,24],[42,28,42,29],[42,31,42,33],[41,5,41,6],[41,8,41,10],[41,11,41,12],[41,13,41,14],[41,19,41,22],[41,23,41,24],[43,28,43,29],[43,31,43,33],[44,5,44,6],[44,8,44,10],[44,11,44,12],[44,13,44,14],[44,19,44,22],[44,23,44,24],[44,28,44,29],[44,31,44,33],[43,5,43,6],[43,8,43,10],[43,11,43,12],[43,13,43,14],[43,19,43,22],[43,23,43,24],[45,28,45,29],[45,31,45,33],[46,5,46,6],[46,8,46,10],[46,11,46,12],[46,13,46,14],[46,19,46,22],[46,23,46,24],[46,28,46,29],[46,31,46,33],[45,5,45,6],[45,8,45,10],[45,11,45,12],[45,13,45,14],[45,19,45,22],[45,23,45,24],[47,28,47,29],[47,31,47,33],[48,5,48,6],[48,8,48,10],[48,11,48,12],[48,13,48,14],[48,19,48,22],[48,23,48,24],[48,28,48,29],[48,31,48,33],[47,5,47,6],[47,8,47,10],[47,11,47,12],[47,13,47,14],[47,19,47,22],[47,23,47,24],[49,28,49,29],[49,31,49,33],[50,5,50,6],[50,8,50,10],[50,11,50,12],[50,13,50,14],[50,19,50,22],[50,23,50,24],[50,28,50,29],[50,31,50,33],[49,5,49,6],[49,8,49,10],[49,11,49,12],[49,13,49,14],[49,19,49,22],[49,23,49,24],[51,28,51,29],[51,31,51,33],[52,5,52,6],[52,8,52,10],[52,11,52,12],[52,13,52,14],[52,19,52,22],[52,23,52,24],[52,28,52,29],[52,31,52,33],[51,5,51,6],[51,8,51,10],[51,11,51,12],[51,13,51,14],[51,19,51,22],[51,23,51,24],[53,28,53,29],[53,31,53,33],[54,5,54,6],[54,8,54,10],[54,11,54,12],[54,13,54,14],[54,19,54,22],[54,23,54,24],[54,28,54,29],[54,31,54,33],[53,5,53,6],[53,8,53,10],[53,11,53,12],[53,13,53,14],[53,19,53,22],[53,23,53,24],[55,28,55,29],[55,31,55,33],[56,5,56,6],[56,8,56,10],[56,11,56,12],[56,13,56,14],[56,19,56,22],[56,23,56,24],[56,28,56,29],[56,31,56,33],[55,5,55,6],[55,8,55,10],[55,11,55,12],[55,13,55,14],[55,19,55,22],[55,23,55,24],[58,4,58,5],[58,7,58,8],[58,10,58,11],[58,12,58,19],[58,20,58,22],[59,2,61,2],[59,4,59,5],[59,7,59,8],[59,10,62,11],[59,12,59,19],[62,7,62,8],[62,12,62,19],[62,20,62,22],[64,3,64,21],[65,4,65,21],[59,20,59,22],[60,4,60,5],[60,7,60,8],[60,12,60,19],[60,20,60,22],[61,4,61,5],[61,7,61,8],[61,12,61,19],[61,20,61,22]]}
[]
[]
[null,null,null,null,"年",null,"桐生市バドミントン協会登録申込用紙"]
[null,null,null,null,null,null,null,null,null,null,null,null,null,null,null,null,null,null,null,null,null,null,null,null,null,null,null,21]
[null,null,"登録団体名",null,null,null,null,null,null,null,null,null,null,null,null,null,null,null,"住所","代表者名",null,null,null,null,"住所",null,"〒",null,null,null,null,null,"固定"]
[null,null,null,null,null,null,null,null,null,null,null,null,null,null,null,null,null,null,null,null,null,null,null,null,null,null,null,null,null,null,null,null,"携帯"]
[]
[null,null,"No","登　　　録　　　　番　　　　号",null,null,null,null,null,null,null,"審判",null,null,null,null,"指導",null,null,"氏　名",null,null,null,"フリガナ",null,"性別","学年","発行","生年月日",null,"郵便番号","備　　考"]
[null,null,null,"市　バ","印","県　バ",null,"印","日　バ",null,null,null,null,"資格№",null,"有効期限",null,"資格№","有効期限",null,null,null,null,null,null,null,null,null,"（西暦）",null,null,null,null,null,null,null,null,null,null,null,null,null,null,null,null,null,null,null,null,null,"郵便番号",null,null,"市町名"]
[null,null,1,null,null,null,null,null,null,null,null,null,null,null,null,null,null,null,null,null,null,null,null,null,null,null,null,null,null,null,null,null,null,null,null,null,null,null,null,null,null,null,null,null,null,null,null,null,null,null,3760001,{"$f":"MID(AY10,1,3)","v":"376"},{"$f":"MID(AY10,4,5)","v":"0001"},"桐生市菱町",{"$f":"IF(AY10<>\"\",MID(AY10,1,3),\"\")","v":"376"},{"$f":"IF(BC10<>\"\",AZ10&\"-\"&BA10,\"\")","v":"376-0001"},11]
[null,null,{"$f":"C10+1","v":2},null,null,null,null,null,null,null,null,null,null,null,null,null,null,null,null,null,null,null,null,null,null,null,null,null,null,null,null,null,null,null,null,null,null,null,null,null,null,null,null,null,null,null,null,null,null,null,"3760002","376","0002","桐生市境野町","376","376-0002",11]
[null,null,{"$f":"C11+1","v":3},null,null,null,null,null,null,null,null,null,null,null,null,null,null,null,null,null,null,null,null,null,null,null,null,null,null,null,null,null,null,null,null,null,null,null,null,null,null,null,null,null,null,null,null,null,null,null,3760003,"376","0003","桐生市琴平町","376","376-0003",11]
[null,null,{"$f":"C12+1","v":4},null,null,null,null,null,null,null,null,null,null,null,null,null,null,null,null,null,null,null,null,null,null,null,null,null,null,null,null,null,null,null,null,null,null,null,null,null,null,null,null,null,null,null,null,null,null,null,"3760004","376","0004","桐生市小梅町","376","376-0004",11]
[null,null,{"$f":"C13+1","v":5},null,null,null,null,null,null,null,null,null,null,null,null,null,null,null,null,null,null,null,null,null,null,null,null,null,null,null,null,null,null,null,null,null,null,null,null,null,null,null,null,null,null,null,null,null,null,null,3760005,"376","0005","桐生市三吉町","376","376-0005",11]
[null,null,6,null,null,null,null,null,null,null,null,null,null,null,null,null,null,null,null,null,null,null,null,null,null,null,null,null,null,null,null,null,null,null,null,null,null,null,null,null,null,null,null,null,null,null,null,null,null,null,3760006,"376","0006","桐生市新宿","376","376-0006",11]
[null,null,7,null,null,null,null,null,null,null,null,null,null,null,null,null,null,null,null,null,null,null,null,null,null,null,null,null,null,null,null,null,null,null,null,null,null,null,null,null,null,null,null,null,null,null,null,null,null,null,3760007,"376","0007","桐生市浜松町","376","376-0007",11]
[null,null,8,null,null,null,null,null,null,null,null,null,null,null,null,null,null,null,null,null,null,null,null,null,null,null,null,null,null,null,null,null,null,null,null,null,null,null,null,null,null,null,null,null,null,null,null,null,null,null,3760011,"376","0011","桐生市相生町","376","376-0011",11]
[null,null,9,null,null,null,null,null,null,null,null,null,null,null,null,null,null,null,null,null,null,null,null,null,null,null,null,null,null,null,null,null,null,null,null,null,null,null,null,null,null,null,null,null,null,null,null,null,null,null,3760012,"376","0012","桐生市桜木町","376","376-0012",11]
[null,null,10,null,null,null,null,null,null,null,null,null,null,null,null,null,null,null,null,null,null,null,null,null,null,null,null,null,null,null,null,null,null,null,null,null,null,null,null,null,null,null,null,null,null,null,null,null,null,null,3760013,"376","0013","桐生市広沢町","376","376-0013",11]
[null,null,11,null,null,null,null,null,null,null,null,null,null,null,null,null,null,null,null,null,null,null,null,null,null,null,null,null,null,null,null,null,null,null,null,null,null,null,null,null,null,null,null,null,null,null,null,null,null,null,3760014,"376","0014","桐生市広沢町間ノ島","376","376-0014",11]
[null,null,12,null,null,null,null,null,null,null,null,null,null,null,null,null,null,null,null,null,null,null,null,null,null,null,null,null,null,null,null,null,null,null,null,null,null,null,null,null,null,null,null,null,null,null,null,null,null,null,3760021,"376","0021","桐生市巴町","376","376-0021",11]
[null,null,13,null,null,null,null,null,null,null,null,null,null,null,null,null,null,null,null,null,null,null,null,null,null,null,null,null,null,null,null,null,null,null,null,null,null,null,null,null,null,null,null,null,null,null,null,null,null,null,3760022,"376","0022","桐生市稲荷町","376","376-0022",11]
[null,null,14,null,null,null,null,null,null,null,null,null,null,null,null,null,null,null,null,null,null,null,null,null,null,null,null,null,null,null,null,null,null,null,null,null,null,null,null,null,null,null,null,null,null,null,null,null,null,null,3760023,"376","0023","桐生市錦町","376","376-0023",11]
[null,null,15,null,null,null,null,null,null,null,null,null,null,null,null,null,null,null,null,null,null,null,null,null,null,null,null,null,null,null,null,null,null,null,null,null,null,null,null,null,null,null,null,null,null,null,null,null,null,null,3760024,"376","0024","桐生市織姫町","376","376-0024",11]
[null,null,16,null,null,null,null,"",null,null,null,null,null,null,null,null,null,null,null,null,null,null,null,null,null,null,null,null,null,null,null,null,null,null,null,null,null,null,null,null,null,null,null,null,null,null,null,null,null,null,3760025,"376","0025","桐生市美原町","376","376-0025",11]
[null,null,17,null,null,null,null,"",null,null,null,null,null,null,null,null,null,null,null,null,null,null,null,null,null,null,null,null,null,null,null,null,null,null,null,null,null,null,null,null,null,null,null,null,null,null,null,null,null,null,3760026,"376","0026","桐生市清瀬町","376","376-0026",11]
[null,null,18,null,null,null,null,"",null,null,null,null,null,null,null,null,null,null,null,null,null,null,null,null,null,null,null,null,null,null,null,null,null,null,null,null,null,null,null,null,null,null,null,null,null,null,null,null,null,null,3760027,"376","0027","桐生市元宿町","376","376-0027",11]
[null,null,19,null,null,null,null,"",null,null,null,null,null,null,null,null,null,null,null,null,null,null,null,null,null,null,null,null,null,null,null,null,null,null,null,null,null,null,null,null,null,null,null,null,null,null,null,null,null,null,3760031,"376","0031","桐生市本町","376","376-0031",11,"ここに非表示の行がある"]
[null,null,20,null,null,null,null,"",null,null,null,null,null,null,null,null,null,null,null,null,null,null,null,null,null,null,null,null,null,null,null,null,null,null,null,null,null,null,null,null,null,null,null,null,null,null,null,null,null,null,3760032,"376","0032","桐生市東","376","376-0032",11]
[null,null,21,null,null,null,null,"",null,null,null,null,null,null,null,null,null,null,null,null,null,null,null,null,null,null,null,null,null,null,null,null,null,null,null,null,null,null,null,null,null,null,null,null,null,null,null,null,null,null,3760033,"376","0033","桐生市泉町","376","376-0033",11]
[null,null,22,null,null,null,null,null,null,null,null,null,null,null,null,null,null,null,null,null,null,null,null,null,null,null,null,null,null,null,null,null,null,null,null,null,null,null,null,null,null,null,null,null,null,null,null,null,null,null,3760034,"376","0034","桐生市東","376","376-0034",11]
[null,null,23,null,null,null,null,null,null,null,null,null,null,null,null,null,null,null,null,null,null,null,null,null,null,null,null,null,null,null,null,null,null,null,null,null,null,null,null,null,null,null,null,null,null,null,null,null,null,null,3760035,"376","0035","桐生市仲町","376","376-0035",11]
[null,null,24,null,null,null,null,null,null,null,null,null,null,null,null,null,null,null,null,null,null,null,null,null,null,null,null,null,null,null,null,null,null,null,null,null,null,null,null,null,null,null,null,null,null,null,null,null,null,null,3760036,"376","0036","桐生市川岸町","376","376-0036",11]
[null,null,25,null,null,null,null,null,null,null,null,null,null,null,null,null,null,null,null,null,null,null,null,null,null,null,null,null,null,null,null,null,null,null,null,null,null,null,null,null,null,null,null,null,null,null,null,null,null,null,3760037,"376","0037","桐生市旭町","376","376-0037",11]
[null,null,26,null,null,null,null,null,null,null,null,null,null,null,null,null,null,null,null,null,null,null,null,null,null,null,null,null,null,null,null,null,null,null,null,null,null,null,null,null,null,null,null,null,null,null,null,null,null,null,3760038,"376","0038","桐生市高砂町","376","376-0038",11]
[null,null,27,null,null,null,null,null,null,null,null,null,null,null,null,null,null,null,null,null,null,null,null,null,null,null,null,null,null,null,null,null,null,null,null,null,null,null,null,null,null,null,null,null,null,null,null,null,null,null,3760041,"376","0041","桐生市川内町","376","376-0041",11]
[null,null,28,null,null,null,null,null,null,null,null,null,null,null,null,null,null,null,null,null,null,null,null,null,null,null,null,null,null,null,null,null,null,null,null,null,null,null,null,null,null,null,null,null,null,null,null,null,null,null,3760042,"376","0042","桐生市堤町","376","376-0042",11]
[null,null,29,null,null,null,null,null,null,null,null,null,null,null,null,null,null,null,null,null,null,null,null,null,null,null,null,null,null,null,null,null,null,null,null,null,null,null,null,null,null,null,null,null,null,null,null,null,null,null,3760043,"376","0043","桐生市小曽根町","376","376-0043",11]
[null,null,30,null,null,null,null,null,null,null,null,null,null,null,null,null,null,null,null,null,null,null,null,null,null,null,null,null,null,null,null,null,null,null,null,null,null,null,null,null,null,null,null,null,null,null,null,null,null,null,3760044,"376","0044","桐生市永楽町","376","376-0044",11]
[null,null,31,null,null,null,null,null,null,null,null,null,null,null,null,null,null,null,null,null,null,null,null,null,null,null,null,null,null,null,null,null,null,null,null,null,null,null,null,null,null,null,null,null,null,null,null,null,null,null,3760045,"376","0045","桐生市末広町","376","376-0045",11]
[null,null,32,null,null,null,null,null,null,null,null,null,null,null,null,null,null,null,null,null,null,null,null,null,null,null,null,null,null,null,null,null,null,null,null,null,null,null,null,null,null,null,null,null,null,null,null,null,null,null,3760046,"376","0046","桐生市宮前町","376","376-0046",11]
[null,null,33,null,null,null,null,null,null,null,null,null,null,null,null,null,null,null,null,null,null,null,null,null,null,null,null,null,null,null,null,null,null,null,null,null,null,null,null,null,null,null,null,null,null,null,null,null,null,null,3760051,"376","0051","桐生市平井町","376","376-0051",11]
[null,null,34,null,null,null,null,null,null,null,null,null,null,null,null,null,null,null,null,null,null,null,null,null,null,null,null,null,null,null,null,null,null,null,null,null,null,null,null,null,null,null,null,null,null,null,null,null,null,null,3760052,"376","0052","桐生市天神町","376","376-0052",11]
[null,null,35,null,null,null,null,null,null,null,null,null,null,null,null,null,null,null,null,null,null,null,null,null,null,null,null,null,null,null,null,null,null,null,null,null,null,null,null,null,null,null,null,null,null,null,null,null,null,null,3760053,"376","0053","桐生市東久方町","376","376-0053",11]
[null,null,36,null,null,null,null,null,null,null,null,null,null,null,null,null,null,null,null,null,null,null,null,null,null,null,null,null,null,null,null,null,null,null,null,null,null,null,null,null,null,null,null,null,null,null,null,null,null,null,3760054,"376","0054","桐生市西久方町","376","376-0054",11]
[null,null,37,null,null,null,null,null,null,null,null,null,null,null,null,null,null,null,null,null,null,null,null,null,null,null,null,null,null,null,null,null,null,null,null,null,null,null,null,null,null,null,null,null,null,null,null,null,null,null,3760055,"376","0055","桐生市横山町","376","376-0055",11]
[null,null,38,null,null,null,null,null,null,null,null,null,null,null,null,null,null,null,null,null,null,null,null,null,null,null,null,null,null,null,null,null,null,null,null,null,null,null,null,null,null,null,null,null,null,null,null,null,null,null,3760056,"376","0056","桐生市宮本町","376","376-0056",11]
[null,null,39,null,null,null,null,null,null,null,null,null,null,null,null,null,null,null,null,null,null,null,null,null,null,null,null,null,null,null,null,null,null,null,null,null,null,null,null,null,null,null,null,null,null,null,null,null,null,null,3760121,"376","0121","桐生市新里町新川","376","376-0121",12]
[null,null,40,null,null,null,null,null,null,null,null,null,null,null,null,null,null,null,null,null,null,null,null,null,null,null,null,null,null,null,null,null,null,null,null,null,null,null,null,null,null,null,null,null,null,null,null,null,null,null,3760122,"376","0122","桐生市新里町野","376","376-0122",12]
[null,null,41,null,null,null,null,null,null,null,null,null,null,null,null,null,null,null,null,null,null,null,null,null,null,null,null,null,null,null,null,null,null,null,null,null,null,null,null,null,null,null,null,null,null,null,null,null,null,null,3760123,"376","0123","桐生市新里町武井","376","376-0123",12]
[null,null,42,null,null,null,null,null,null,null,null,null,null,null,null,null,null,null,null,null,null,null,null,null,null,null,null,null,null,null,null,null,null,null,null,null,null,null,null,null,null,null,null,null,null,null,null,null,null,null,3760124,"376","0124","桐生市新里町小林","376","376-0124",12]
[null,null,43,null,null,null,null,null,null,null,null,null,null,null,null,null,null,null,null,null,null,null,null,null,null,null,null,null,null,null,null,null,null,null,null,null,null,null,null,null,null,null,null,null,null,null,null,null,null,null,3760125,"376","0125","桐生市新里町山上","376","376-0125",12]
[null,null,44,null,null,null,null,null,null,null,null,null,null,null,null,null,null,null,null,null,null,null,null,null,null,null,null,null,null,null,null,null,null,null,null,null,null,null,null,null,null,null,null,null,null,null,null,null,null,null,3760131,"376","0131","桐生市新里町奥沢","376","376-0131",12]
[null,null,45,null,null,null,null,null,null,null,null,null,null,null,null,null,null,null,null,null,null,null,null,null,null,null,null,null,null,null,null,null,null,null,null,null,null,null,null,null,null,null,null,null,null,null,null,null,null,null,3760131,"376","0131","桐生市新里町奥沢","376","376-0131",12]
[null,null,46,null,null,null,null,null,null,null,null,null,null,null,null,null,null,null,null,null,null,null,null,null,null,null,null,null,null,null,null,null,null,null,null,null,null,null,null,null,null,null,null,null,null,null,null,null,null,null,3760132,"376","0132","桐生市新里町鶴ケ谷","376","376-0132",12]
[null,null,47,null,null,null,null,null,null,null,null,null,null,null,null,null,null,null,null,null,null,null,null,null,null,null,null,null,null,null,null,null,null,null,null,null,null,null,null,null,null,null,null,null,null,null,null,null,null,null,3760133,"376","0133","桐生市新里町大久保","376","376-0133",12]
[null,null,48,null,null,null,null,null,null,null,null,null,null,null,null,null,null,null,null,null,null,null,null,null,null,null,null,null,null,null,null,null,null,null,null,null,null,null,null,null,null,null,null,null,null,null,null,null,null,null,3760134,"376","0134","桐生市新里町関","376","376-0134",12]
[null,null,null,null,null,null,null,null,null,null,null,null,null,null,null,null,null,null,null,null,null,null,null,null,null,null,null,null,null,null,null,null,null,null,null,null,null,null,null,null,null,null,null,null,null,null,null,null,null,null,3760135,"376","0135","桐生市新里町高泉","376","376-0135",12]
[null,null,null,null,"人数",null,"単価","金額",null,null,null,null,"曜日",null,null,null,null,null,null,null,"会　場",null,null,null,null,null,null,null,null,null,null,null,null,null,null,null,null,null,null,null,null,null,null,null,null,null,null,null,null,null,3760136,"376","0136","桐生市新里町板橋","376","376-0136",12]
[null,null,"登録料","市バ",null,null,null,null,null,null,"練習日",null,null,null,null,null,null,null,null,null,null,null,null,null,null,null,null,null,null,null,null,null,null,null,null,null,null,null,null,null,null,null,null,null,null,null,null,null,null,null,3760601,"376","0601","桐生市梅田町","376","376-0601",12]
[null,null,null,"県バのみ",null,null,null,null,null,null,null,null,null,null,null,null,null,null,null,null,null,null,null,null,null,null,null,null,null,null,null,null,null,null,null,null,null,null,null,null,null,null,null,null,null,null,null,null,null,null,3760137,"376","0137","桐生市新里町赤城山","376","376-0137",13]
[null,null,null,"日県バ",null,null,null,null,null,null,null,null,null,null,null,null,null,null,null,null,null,null,null,null,null,null,null,null,null,null,null,null,null,null,null,null,null,null,null,null,null,null,null,null,null,null,null,null,null,null,3760141,"376","0141","桐生市黒保根町水沼","376","376-0141",13]
[null,null,null,null,null,null,"合　計",null,null,null,null,null,null,null,null,null,null,null,null,null,null,null,null,null,null,null,null,null,null,null,null,null,null,null,null,null,null,null,null,null,null,null,null,null,null,null,null,null,null,null,3760142,"376","0142","桐生市黒保根町八木原","376","376-0142",13]
[null,null,null,null,null,null,null,null,null,null,null,null,null,null,null,null,null,null,null,null,null,null,null,null,null,null,null,null,null,null,null,null,null,null,null,null,null,null,null,null,null,null,null,null,null,null,null,null,null,null,3760143,"376","0143","桐生市黒保根町宿廻","376","376-0143",13]
[null,null,null,null,null,null,null,null,null,null,null,null,null,null,null,null,null,null,null,null,null,null,null,null,null,null,null,null,null,null,null,null,null,null,null,null,null,null,null,null,null,null,null,null,null,null,null,null,null,null,3760144,"376","0144","桐生市黒保根町下田沢","376","376-0144",13]
[null,null,null,null,null,null,null,null,null,null,null,null,null,null,null,null,null,null,null,null,null,null,null,null,null,null,null,null,null,null,null,null,null,null,null,null,null,null,null,null,null,null,null,null,null,null,null,null,null,null,3760145,"376","0145","桐生市黒保根町上田沢","376","376-0145",13]
[null,null,null,null,null,null,null,null,null,null,null,null,null,null,null,null,null,null,null,null,null,null,null,null,null,null,null,null,null,null,null,null,null,null,null,null,null,null,null,null,null,null,null,null,null,null,null,null,null,null,3760101,"376","0101","みどり市大間々町大間々","376","376-0101",14]
[null,null,null,null,null,null,null,null,null,null,null,null,null,null,null,null,null,null,null,null,null,null,null,null,null,null,null,null,null,null,null,null,null,null,null,null,null,null,null,null,null,null,null,null,null,null,null,null,null,null,3760102,"376","0102","みどり市大間々町桐原","376","376-0102",14]
[null,null,null,null,null,null,null,null,null,null,null,null,null,null,null,null,null,null,null,null,null,null,null,null,null,null,null,null,null,null,null,null,null,null,null,null,null,null,null,null,null,null,null,null,null,null,null,null,null,null,3760103,"376","0103","みどり市大間々町下神梅","376","376-0103",14]
[null,null,null,null,null,null,null,null,null,null,null,null,null,null,null,null,null,null,null,null,null,null,null,null,null,null,null,null,null,null,null,null,null,null,null,null,null,null,null,null,null,null,null,null,null,null,null,null,null,null,3760104,"376","0104","みどり市大間々町上神梅","376","376-0104",14]
[null,null,null,null,null,null,null,null,null,null,null,null,null,null,null,null,null,null,null,null,null,null,null,null,null,null,null,null,null,null,null,null,null,null,null,null,null,null,null,null,null,null,null,null,null,null,null,null,null,null,3760111,"376","0111","みどり市大間々町小平","376","376-0111",14]
[null,null,null,null,null,null,null,null,null,null,null,null,null,null,null,null,null,null,null,null,null,null,null,null,null,null,null,null,null,null,null,null,null,null,null,null,null,null,null,null,null,null,null,null,null,null,null,null,null,null,3760112,"376","0112","みどり市大間々町長尾根","376","376-0112",14]
[null,null,null,null,null,null,null,null,null,null,null,null,null,null,null,null,null,null,null,null,null,null,null,null,null,null,null,null,null,null,null,null,null,null,null,null,null,null,null,null,null,null,null,null,null,null,null,null,null,null,3760113,"376","0113","みどり市大間々町高津戸","376","376-0113",14]
[null,null,null,null,null,null,null,null,null,null,null,null,null,null,null,null,null,null,null,null,null,null,null,null,null,null,null,null,null,null,null,null,null,null,null,null,null,null,null,null,null,null,null,null,null,null,null,null,null,null,3760114,"376","0114","みどり市大間々町浅原","376","376-0114",14]
[null,null,null,null,null,null,null,null,null,null,null,null,null,null,null,null,null,null,null,null,null,null,null,null,null,null,null,null,null,null,null,null,null,null,null,null,null,null,null,null,null,null,null,null,null,null,null,null,null,null,3760115,{"$f":"MID(AY75,1,3)","v":"376"},{"$f":"MID(AY75,4,5)","v":"0115"},"みどり市大間々町塩原",{"$f":"IF(AY75<>\"\",MID(AY75,1,3),\"\")","v":"376"},{"$f":"IF(BC75<>\"\",AZ75&\"-\"&BA75,\"\")","v":"376-0115"},14]
[null,null,null,null,null,null,null,null,null,null,null,null,null,null,null,null,null,null,null,null,null,null,null,null,null,null,null,null,null,null,null,null,null,null,null,null,null,null,null,null,null,null,null,null,null,null,null,null,null,null,3760116,"376","0116","みどり市大間々町塩沢","376","376-0116",14]
[null,null,null,null,null,null,null,null,null,null,null,null,null,null,null,null,null,null,null,null,null,null,null,null,null,null,null,null,null,null,null,null,null,null,null,null,null,null,null,null,null,null,null,null,null,null,null,null,null,null,3792311,"379","2311","みどり市笠懸町阿左美","379","379-2311",14]
[null,null,null,null,null,null,null,null,null,null,null,null,null,null,null,null,null,null,null,null,null,null,null,null,null,null,null,null,null,null,null,null,null,null,null,null,null,null,null,null,null,null,null,null,null,null,null,null,null,null,3792312,"379","2312","みどり市笠懸町久宮","379","379-2312",14]
[null,null,null,null,null,null,null,null,null,null,null,null,null,null,null,null,null,null,null,null,null,null,null,null,null,null,null,null,null,null,null,null,null,null,null,null,null,null,null,null,null,null,null,null,null,null,null,null,null,null,3792313,"379","2313","みどり市笠懸町鹿","379","379-2313",14]
[null,null,null,null,null,null,null,null,null,null,null,null,null,null,null,null,null,null,null,null,null,null,null,null,null,null,null,null,null,null,null,null,null,null,null,null,null,null,null,null,null,null,null,null,null,null,null,null,null,null,3792314,"379","2314","みどり市笠懸町西鹿田","379","379-2314",14]
[null,null,null,null,null,null,null,null,null,null,null,null,null,null,null,null,null,null,null,null,null,null,null,null,null,null,null,null,null,null,null,null,null,null,null,null,null,null,null,null,null,null,null,null,null,null,null,null,null,null,3710013,"371","0013","前橋市西片貝町","371","371-0013",15]
[null,null,null,null,null,null,null,null,null,null,null,null,null,null,null,null,null,null,null,null,null,null,null,null,null,null,null,null,null,null,null,null,null,null,null,null,null,null,null,null,null,null,null,null,null,null,null,null,null,null,3710017,"371","0017","前橋市日吉町","371","371-0017",15]
[null,null,null,null,null,null,null,null,null,null,null,null,null,null,null,null,null,null,null,null,null,null,null,null,null,null,null,null,null,null,null,null,null,null,null,null,null,null,null,null,null,null,null,null,null,null,null,null,null,null,3710044,"371","0044","前橋市荒牧町","371","371-0044",15]
[null,null,null,null,null,null,null,null,null,null,null,null,null,null,null,null,null,null,null,null,null,null,null,null,null,null,null,null,null,null,null,null,null,null,null,null,null,null,null,null,null,null,null,null,null,null,null,null,null,null,3710104,"371","0104","前橋市富士見町時沢","371","371-0104",15]
[null,null,null,null,null,null,null,null,null,null,null,null,null,null,null,null,null,null,null,null,null,null,null,null,null,null,null,null,null,null,null,null,null,null,null,null,null,null,null,null,null,null,null,null,null,null,null,null,null,null,3710203,"371","0203","前橋市粕川町月田","371","371-0203",15]
[null,null,null,null,null,null,null,null,null,null,null,null,null,null,null,null,null,null,null,null,null,null,null,null,null,null,null,null,null,null,null,null,null,null,null,null,null,null,null,null,null,null,null,null,null,null,null,null,null,null,"3710232","371","0232","前橋市茂木町","371","371-0232",15]
[null,null,null,null,null,null,null,null,null,null,null,null,null,null,null,null,null,null,null,null,null,null,null,null,null,null,null,null,null,null,null,null,null,null,null,null,null,null,null,null,null,null,null,null,null,null,null,null,null,null,3710244,371,"0244","前橋市鼻毛石町","371","371-0244",15]
[null,null,null,null,null,null,null,null,null,null,null,null,null,null,null,null,null,null,null,null,null,null,null,null,null,null,null,null,null,null,null,null,null,null,null,null,null,null,null,null,null,null,null,null,null,null,null,null,null,null,3710801,{"$f":"MID(AY88,1,3)","v":"371"},{"$f":"MID(AY88,4,5)","v":"0801"},"前橋市文京町","371","371-0801",15]
[null,null,null,null,null,null,null,null,null,null,null,null,null,null,null,null,null,null,null,null,null,null,null,null,null,null,null,null,null,null,null,null,null,null,null,null,null,null,null,null,null,null,null,null,null,null,null,null,null,null,3710802,{"$f":"MID(AY89,1,3)","v":"371"},{"$f":"MID(AY89,4,5)","v":"0802"},"前橋市天川町","371","371-0802",15]
[null,null,null,null,null,null,null,null,null,null,null,null,null,null,null,null,null,null,null,null,null,null,null,null,null,null,null,null,null,null,null,null,null,null,null,null,null,null,null,null,null,null,null,null,null,null,null,null,null,null,3710812,{"$f":"MID(AY90,1,3)","v":"371"},{"$f":"MID(AY90,4,5)","v":"0812"},"前橋市広瀬町","371","371-0812",15]
[null,null,null,null,null,null,null,null,null,null,null,null,null,null,null,null,null,null,null,null,null,null,null,null,null,null,null,null,null,null,null,null,null,null,null,null,null,null,null,null,null,null,null,null,null,null,null,null,null,null,3792113,{"$f":"MID(AY91,1,3)","v":"379"},{"$f":"MID(AY91,4,5)","v":"2113"},"前橋市下増田町","379","379-2113",15]
[null,null,null,null,null,null,null,null,null,null,null,null,null,null,null,null,null,null,null,null,null,null,null,null,null,null,null,null,null,null,null,null,null,null,null,null,null,null,null,null,null,null,null,null,null,null,null,null,null,null,3792123,{"$f":"MID(AY92,1,3)","v":"379"},{"$f":"MID(AY92,4,5)","v":"2123"},"前橋市山王町","379","379-2123",15]
[null,null,null,null,null,null,null,null,null,null,null,null,null,null,null,null,null,null,null,null,null,null,null,null,null,null,null,null,null,null,null,null,null,null,null,null,null,null,null,null,null,null,null,null,null,null,null,null,null,null,3792154,379,2154,"前橋市天川大島町","379","379-2154",15]
[null,null,null,null,null,null,null,null,null,null,null,null,null,null,null,null,null,null,null,null,null,null,null,null,null,null,null,null,null,null,null,null,null,null,null,null,null,null,null,null,null,null,null,null,null,null,null,null,null,null,3700021,{"$f":"MID(AY94,1,3)","v":"370"},{"$f":"MID(AY94,4,5)","v":"0021"},"高崎市西横手町","370","370-0021",16]
[null,null,null,null,null,null,null,null,null,null,null,null,null,null,null,null,null,null,null,null,null,null,null,null,null,null,null,null,null,null,null,null,null,null,null,null,null,null,null,null,null,null,null,null,null,null,null,null,null,null,3700882,"370","0882","高崎市金井淵町","370","370-0882",16]
[null,null,null,null,null,null,null,null,null,null,null,null,null,null,null,null,null,null,null,null,null,null,null,null,null,null,null,null,null,null,null,null,null,null,null,null,null,null,null,null,null,null,null,null,null,null,null,null,null,null,"3700311","370","0311","太田市新田瑞木町","370","370-0311",17]
[null,null,null,null,null,null,null,null,null,null,null,null,null,null,null,null,null,null,null,null,null,null,null,null,null,null,null,null,null,null,null,null,null,null,null,null,null,null,null,null,null,null,null,null,null,null,null,null,null,null,3700312,"370","0312","太田市新田町村田","370","370-0312",17]
[null,null,null,null,null,null,null,null,null,null,null,null,null,null,null,null,null,null,null,null,null,null,null,null,null,null,null,null,null,null,null,null,null,null,null,null,null,null,null,null,null,null,null,null,null,null,null,null,null,null,3700346,"370","0346","太田市新田町上田中","370","370-0346",17]
[null,null,null,null,null,null,null,null,null,null,null,null,null,null,null,null,null,null,null,null,null,null,null,null,null,null,null,null,null,null,null,null,null,null,null,null,null,null,null,null,null,null,null,null,null,null,null,null,null,null,3700416,"370","0416","太田市前島町","370","370-0416",17]
[null,null,null,null,null,null,null,null,null,null,null,null,null,null,null,null,null,null,null,null,null,null,null,null,null,null,null,null,null,null,null,null,null,null,null,null,null,null,null,null,null,null,null,null,null,null,null,null,null,null,3730005,"373","0005","太田市鶴生田","373","373-0005",17]
[null,null,null,null,null,null,null,null,null,null,null,null,null,null,null,null,null,null,null,null,null,null,null,null,null,null,null,null,null,null,null,null,null,null,null,null,null,null,null,null,null,null,null,null,null,null,null,null,null,null,"3730023","373","0023","太田市富若町","373","373-0023",17]
[null,null,null,null,null,null,null,null,null,null,null,null,null,null,null,null,null,null,null,null,null,null,null,null,null,null,null,null,null,null,null,null,null,null,null,null,null,null,null,null,null,null,null,null,null,null,null,null,null,null,3730025,"373","0025","太田市熊野町","373","373-0025",17]
[null,null,null,null,null,null,null,null,null,null,null,null,null,null,null,null,null,null,null,null,null,null,null,null,null,null,null,null,null,null,null,null,null,null,null,null,null,null,null,null,null,null,null,null,null,null,null,null,null,null,"3730036","373","0036","太田市由良町","373","373-0036",17]
[null,null,null,null,null,null,null,null,null,null,null,null,null,null,null,null,null,null,null,null,null,null,null,null,null,null,null,null,null,null,null,null,null,null,null,null,null,null,null,null,null,null,null,null,null,null,null,null,null,null,3730053,"373","0053","太田市鳥山町","373","373-0053",17]
[null,null,null,null,null,null,null,null,null,null,null,null,null,null,null,null,null,null,null,null,null,null,null,null,null,null,null,null,null,null,null,null,null,null,null,null,null,null,null,null,null,null,null,null,null,null,null,null,null,null,"3730055","373","0055","太田市大島町","373","373-0055",17]
[null,null,null,null,null,null,null,null,null,null,null,null,null,null,null,null,null,null,null,null,null,null,null,null,null,null,null,null,null,null,null,null,null,null,null,null,null,null,null,null,null,null,null,null,null,null,null,null,null,null,3730061,"373","0061","太田市鳥山上町","373","373-0061",17]
[null,null,null,null,null,null,null,null,null,null,null,null,null,null,null,null,null,null,null,null,null,null,null,null,null,null,null,null,null,null,null,null,null,null,null,null,null,null,null,null,null,null,null,null,null,null,null,null,null,null,3730062,"373","0062","太田市鳥山中町","373","373-0062",17]
[null,null,null,null,null,null,null,null,null,null,null,null,null,null,null,null,null,null,null,null,null,null,null,null,null,null,null,null,null,null,null,null,null,null,null,null,null,null,null,null,null,null,null,null,null,null,null,null,null,null,"3730063","373","0063","太田市烏山下町","373","373-0063",17]
[null,null,null,null,null,null,null,null,null,null,null,null,null,null,null,null,null,null,null,null,null,null,null,null,null,null,null,null,null,null,null,null,null,null,null,null,null,null,null,null,null,null,null,null,null,null,null,null,null,null,3730802,"373","0802","太田市矢場新町","373","373-0802",17]
[null,null,null,null,null,null,null,null,null,null,null,null,null,null,null,null,null,null,null,null,null,null,null,null,null,null,null,null,null,null,null,null,null,null,null,null,null,null,null,null,null,null,null,null,null,null,null,null,null,null,3730808,"373","0808","太田市石原街","373","373-0808",17]
[null,null,null,null,null,null,null,null,null,null,null,null,null,null,null,null,null,null,null,null,null,null,null,null,null,null,null,null,null,null,null,null,null,null,null,null,null,null,null,null,null,null,null,null,null,null,null,null,null,null,"3730817","373","0817","太田市飯塚町","373","373-0817",17]
[null,null,null,null,null,null,null,null,null,null,null,null,null,null,null,null,null,null,null,null,null,null,null,null,null,null,null,null,null,null,null,null,null,null,null,null,null,null,null,null,null,null,null,null,null,null,null,null,null,null,3730818,"373","0818","太田市小舞木町","373","373-0818",17]
[null,null,null,null,null,null,null,null,null,null,null,null,null,null,null,null,null,null,null,null,null,null,null,null,null,null,null,null,null,null,null,null,null,null,null,null,null,null,null,null,null,null,null,null,null,null,null,null,null,null,3730842,"373","0842","太田市細谷町","373","373-0842",17]
[null,null,null,null,null,null,null,null,null,null,null,null,null,null,null,null,null,null,null,null,null,null,null,null,null,null,null,null,null,null,null,null,null,null,null,null,null,null,null,null,null,null,null,null,null,null,null,null,null,null,3730847,"373","0847","太田市西新町","373","373-0847",17]
[null,null,null,null,null,null,null,null,null,null,null,null,null,null,null,null,null,null,null,null,null,null,null,null,null,null,null,null,null,null,null,null,null,null,null,null,null,null,null,null,null,null,null,null,null,null,null,null,null,null,"3730851","373","0851","太田市飯田町","373","373-0851",17]
[null,null,null,null,null,null,null,null,null,null,null,null,null,null,null,null,null,null,null,null,null,null,null,null,null,null,null,null,null,null,null,null,null,null,null,null,null,null,null,null,null,null,null,null,null,null,null,null,null,null,3792301,"379","2301","太田市薮塚町","379","379-2301",17]
[null,null,null,null,null,null,null,null,null,null,null,null,null,null,null,null,null,null,null,null,null,null,null,null,null,null,null,null,null,null,null,null,null,null,null,null,null,null,null,null,null,null,null,null,null,null,null,null,null,null,3792302,"379","2302","太田市山之神町","379","379-2302",17]
[null,null,null,null,null,null,null,null,null,null,null,null,null,null,null,null,null,null,null,null,null,null,null,null,null,null,null,null,null,null,null,null,null,null,null,null,null,null,null,null,null,null,null,null,null,null,null,null,null,null,3792303,"379","2303","太田市寄合町","379","379-2303",17]
[null,null,null,null,null,null,null,null,null,null,null,null,null,null,null,null,null,null,null,null,null,null,null,null,null,null,null,null,null,null,null,null,null,null,null,null,null,null,null,null,null,null,null,null,null,null,null,null,null,null,3792304,"379","2304","太田市大原町","379","379-2304",17]
[null,null,null,null,null,null,null,null,null,null,null,null,null,null,null,null,null,null,null,null,null,null,null,null,null,null,null,null,null,null,null,null,null,null,null,null,null,null,null,null,null,null,null,null,null,null,null,null,null,null,3792305,"379","2305","太田市六千石町","379","379-2305",17]
[null,null,null,null,null,null,null,null,null,null,null,null,null,null,null,null,null,null,null,null,null,null,null,null,null,null,null,null,null,null,null,null,null,null,null,null,null,null,null,null,null,null,null,null,null,null,null,null,null,null,3792306,"379","2306","太田市大久保町","379","379-2306",17]
[null,null,null,null,null,null,null,null,null,null,null,null,null,null,null,null,null,null,null,null,null,null,null,null,null,null,null,null,null,null,null,null,null,null,null,null,null,null,null,null,null,null,null,null,null,null,null,null,null,null,3700104,"370","0104","伊勢崎市境木島","370","370-0104",18]
[null,null,null,null,null,null,null,null,null,null,null,null,null,null,null,null,null,null,null,null,null,null,null,null,null,null,null,null,null,null,null,null,null,null,null,null,null,null,null,null,null,null,null,null,null,null,null,null,null,null,"3720002","372","0002","伊勢崎市堤西町","372","372-0002",18]
[null,null,null,null,null,null,null,null,null,null,null,null,null,null,null,null,null,null,null,null,null,null,null,null,null,null,null,null,null,null,null,null,null,null,null,null,null,null,null,null,null,null,null,null,null,null,null,null,null,null,3720056,"372","0056","伊勢崎市喜多町","372","372-0056",18]
[null,null,null,null,null,null,null,null,null,null,null,null,null,null,null,null,null,null,null,null,null,null,null,null,null,null,null,null,null,null,null,null,null,null,null,null,null,null,null,null,null,null,null,null,null,null,null,null,null,null,3720812,"372","0812","伊勢崎市連取町","372","372-0812",18]
[null,null,null,null,null,null,null,null,null,null,null,null,null,null,null,null,null,null,null,null,null,null,null,null,null,null,null,null,null,null,null,null,null,null,null,null,null,null,null,null,null,null,null,null,null,null,null,null,null,null,"3720813","372","0813","伊勢崎市韮塚町","372","372-0813",18]
[null,null,null,null,null,null,null,null,null,null,null,null,null,null,null,null,null,null,null,null,null,null,null,null,null,null,null,null,null,null,null,null,null,null,null,null,null,null,null,null,null,null,null,null,null,null,null,null,null,null,3720824,"372","0824","伊勢崎市柴","372","372-0824",18]
[null,null,null,null,null,null,null,null,null,null,null,null,null,null,null,null,null,null,null,null,null,null,null,null,null,null,null,null,null,null,null,null,null,null,null,null,null,null,null,null,null,null,null,null,null,null,null,null,null,null,3792203,"379","2203","伊勢崎市曲沢町","379","379-2203",18]
[null,null,null,null,null,null,null,null,null,null,null,null,null,null,null,null,null,null,null,null,null,null,null,null,null,null,null,null,null,null,null,null,null,null,null,null,null,null,null,null,null,null,null,null,null,null,null,null,null,null,"3792211","379","2211","伊勢崎市市場町","379","379-2211",18]
[null,null,null,null,null,null,null,null,null,null,null,null,null,null,null,null,null,null,null,null,null,null,null,null,null,null,null,null,null,null,null,null,null,null,null,null,null,null,null,null,null,null,null,null,null,null,null,null,null,null,3792221,"379","2221","伊勢崎市国定町","379","379-2221",18]
[null,null,null,null,null,null,null,null,null,null,null,null,null,null,null,null,null,null,null,null,null,null,null,null,null,null,null,null,null,null,null,null,null,null,null,null,null,null,null,null,null,null,null,null,null,null,null,null,null,null,3792222,"379","2222","伊勢崎市田部井町","379","379-2222",18]
[null,null,null,null,null,null,null,null,null,null,null,null,null,null,null,null,null,null,null,null,null,null,null,null,null,null,null,null,null,null,null,null,null,null,null,null,null,null,null,null,null,null,null,null,null,null,null,null,null,null,3792224,"379","2224","伊勢崎市西小保方町","379","379-2224",18]
[null,null,null,null,null,null,null,null,null,null,null,null,null,null,null,null,null,null,null,null,null,null,null,null,null,null,null,null,null,null,null,null,null,null,null,null,null,null,null,null,null,null,null,null,null,null,null,null,null,null,3792232,"379","2232","伊勢崎市小泉町","379","379-2232",18]
[null,null,null,null,null,null,null,null,null,null,null,null,null,null,null,null,null,null,null,null,null,null,null,null,null,null,null,null,null,null,null,null,null,null,null,null,null,null,null,null,null,null,null,null,null,null,null,null,null,null,"3700501","370","0501","邑楽郡千代田町福島","370","370-0501",19]
[null,null,null,null,null,null,null,null,null,null,null,null,null,null,null,null,null,null,null,null,null,null,null,null,null,null,null,null,null,null,null,null,null,null,null,null,null,null,null,null,null,null,null,null,null,null,null,null,null,null,3700503,"370","0503","邑楽郡千代田町赤岩","370","370-0503",19]
[null,null,null,null,null,null,null,null,null,null,null,null,null,null,null,null,null,null,null,null,null,null,null,null,null,null,null,null,null,null,null,null,null,null,null,null,null,null,null,null,null,null,null,null,null,null,null,null,null,null,"3700516","370","0516","邑楽郡大泉町中央","370","370-0516",19]
[null,null,null,null,null,null,null,null,null,null,null,null,null,null,null,null,null,null,null,null,null,null,null,null,null,null,null,null,null,null,null,null,null,null,null,null,null,null,null,null,null,null,null,null,null,null,null,null,null,null,"3700524","370","0524","邑楽郡大泉町古海","370","370-0524",19]
[null,null,null,null,null,null,null,null,null,null,null,null,null,null,null,null,null,null,null,null,null,null,null,null,null,null,null,null,null,null,null,null,null,null,null,null,null,null,null,null,null,null,null,null,null,null,null,null,null,null,3700603,"370","0603","邑楽郡邑楽町中野","370","370-0603",19]
[null,null,null,null,null,null,null,null,null,null,null,null,null,null,null,null,null,null,null,null,null,null,null,null,null,null,null,null,null,null,null,null,null,null,null,null,null,null,null,null,null,null,null,null,null,null,null,null,null,null,3700615,"370","0615","邑楽郡邑楽町篠塚",{"$f":"IF(AY139<>\"\",MID(AY139,1,3),\"\")","v":"370"},{"$f":"IF(BC139<>\"\",AZ139&\"-\"&BA139,\"\")","v":"370-0615"},19]
[null,null,null,null,null,null,null,null,null,null,null,null,null,null,null,null,null,null,null,null,null,null,null,null,null,null,null,null,null,null,null,null,null,null,null,null,null,null,null,null,null,null,null,null,null,null,null,null,null,null,"3702324","370","2324","富岡市南後箇","370","370-2324",20]
[null,null,null,null,null,null,null,null,null,null,null,null,null,null,null,null,null,null,null,null,null,null,null,null,null,null,null,null,null,null,null,null,null,null,null,null,null,null,null,null,null,null,null,null,null,null,null,null,null,null,3260006,"326","0006","足利市利保町","326","326-0006",21]
[null,null,null,null,null,null,null,null,null,null,null,null,null,null,null,null,null,null,null,null,null,null,null,null,null,null,null,null,null,null,null,null,null,null,null,null,null,null,null,null,null,null,null,null,null,null,null,null,null,null,3260011,"326","0011","足利市大沼田町","326","326-0011",21]
[null,null,null,null,null,null,null,null,null,null,null,null,null,null,null,null,null,null,null,null,null,null,null,null,null,null,null,null,null,null,null,null,null,null,null,null,null,null,null,null,null,null,null,null,null,null,null,null,null,null,"3260141","326","0141","足利市小俣町","326","326-0141",21]
[null,null,null,null,null,null,null,null,null,null,null,null,null,null,null,null,null,null,null,null,null,null,null,null,null,null,null,null,null,null,null,null,null,null,null,null,null,null,null,null,null,null,null,null,null,null,null,null,null,null,3260142,"326","0142","足利市小俣南町","326","326-0142",21]
[null,null,null,null,null,null,null,null,null,null,null,null,null,null,null,null,null,null,null,null,null,null,null,null,null,null,null,null,null,null,null,null,null,null,null,null,null,null,null,null,null,null,null,null,null,null,null,null,null,null,"3260143","326","0143","足利市葉鹿町","326","326-0143",21]
[null,null,null,null,null,null,null,null,null,null,null,null,null,null,null,null,null,null,null,null,null,null,null,null,null,null,null,null,null,null,null,null,null,null,null,null,null,null,null,null,null,null,null,null,null,null,null,null,null,null,"3260328","326","0328","足利市県町","326","326-0328",21]
[null,null,null,null,null,null,null,null,null,null,null,null,null,null,null,null,null,null,null,null,null,null,null,null,null,null,null,null,null,null,null,null,null,null,null,null,null,null,null,null,null,null,null,null,null,null,null,null,null,null,3260335,"326","0335","足利市上渋垂","326","326-0335",21]
[null,null,null,null,null,null,null,null,null,null,null,null,null,null,null,null,null,null,null,null,null,null,null,null,null,null,null,null,null,null,null,null,null,null,null,null,null,null,null,null,null,null,null,null,null,null,null,null,null,null,3260338,"326","0338","足利市福居町","326","326-0338",21]
[null,null,null,null,null,null,null,null,null,null,null,null,null,null,null,null,null,null,null,null,null,null,null,null,null,null,null,null,null,null,null,null,null,null,null,null,null,null,null,null,null,null,null,null,null,null,null,null,null,null,"3260803","326","0803","足利市家富町","326","326-0803",21]
[null,null,null,null,null,null,null,null,null,null,null,null,null,null,null,null,null,null,null,null,null,null,null,null,null,null,null,null,null,null,null,null,null,null,null,null,null,null,null,null,null,null,null,null,null,null,null,null,null,null,3260807,"326","0807","足利市大正町","326","326-0807",21]
[null,null,null,null,null,null,null,null,null,null,null,null,null,null,null,null,null,null,null,null,null,null,null,null,null,null,null,null,null,null,null,null,null,null,null,null,null,null,null,null,null,null,null,null,null,null,null,null,null,null,3260808,"326","0808","足利市本城","326","326-0808",21]
[null,null,null,null,null,null,null,null,null,null,null,null,null,null,null,null,null,null,null,null,null,null,null,null,null,null,null,null,null,null,null,null,null,null,null,null,null,null,null,null,null,null,null,null,null,null,null,null,null,null,3260843,"326","0843","足利市五十部町","326","326-0843",21]
[null,null,null,null,null,null,null,null,null,null,null,null,null,null,null,null,null,null,null,null,null,null,null,null,null,null,null,null,null,null,null,null,null,null,null,null,null,null,null,null,null,null,null,null,null,null,null,null,null,null,"3260844","326","0844","足利市鹿島町","326","326-0844",21]
[null,null,null,null,null,null,null,null,null,null,null,null,null,null,null,null,null,null,null,null,null,null,null,null,null,null,null,null,null,null,null,null,null,null,null,null,null,null,null,null,null,null,null,null,null,null,null,null,null,null,"3260846","326","0846","足利市山下町","326","326-0846",21]
[null,null,null,null,null,null,null,null,null,null,null,null,null,null,null,null,null,null,null,null,null,null,null,null,null,null,null,null,null,null,null,null,null,null,null,null,null,null,null,null,null,null,null,null,null,null,null,null,null,null,3270103,327,"0103","佐野市石塚町","327","327-0103",29]
[null,null,null,null,null,null,null,null,null,null,null,null,null,null,null,null,null,null,null,null,null,null,null,null,null,null,null,null,null,null,null,null,null,null,null,null,null,null,null,null,null,null,null,null,null,null,null,null,null,null,3270843,{"$f":"MID(AY156,1,3)","v":"327"},{"$f":"MID(AY156,4,5)","v":"0843"},"佐野市堀込町","327","327-0843",29]
[null,null,null,null,null,null,null,null,null,null,null,null,null,null,null,null,null,null,null,null,null,null,null,null,null,null,null,null,null,null,null,null,null,null,null,null,null,null,null,null,null,null,null,null,null,null,null,null,null,null,3294309,{"$f":"MID(AY157,1,3)","v":"329"},{"$f":"MID(AY157,4,5)","v":"4309"},"下都賀郡岩舟町畳岡","329","329-4309",29]
[null,null,null,null,null,null,null,null,null,null,null,null,null,null,null,null,null,null,null,null,null,null,null,null,null,null,null,null,null,null,null,null,null,null,null,null,null,null,null,null,null,null,null,null,null,null,null,null,null,null,3720002,372,"0002","佐野市並木町","372","372-0002",29]
[null,null,null,null,null,null,null,null,null,null,null,null,null,null,null,null,null,null,null,null,null,null,null,null,null,null,null,null,null,null,null,null,null,null,null,null,null,null,null,null,null,null,null,null,null,null,null,null,null,null,3330866,{"$f":"MID(AY159,1,3)","v":"333"},{"$f":"MID(AY159,4,5)","v":"0866"},"川口市芝","333","333-0866",99]
[null,null,null,null,null,null,null,null,null,null,null,null,null,null,null,null,null,null,null,null,null,null,null,null,null,null,null,null,null,null,null,null,null,null,null,null,null,null,null,null,null,null,null,null,null,null,null,null,null,null,"3450802",{"$f":"MID(AY160,1,3)","v":"345"},{"$f":"MID(AY160,4,5)","v":"0802"},"南埼玉郡宮代町中島","345","345-0802",99]
[null,null,null,null,null,null,null,null,null,null,null,null,null,null,null,null,null,null,null,null,null,null,null,null,null,null,null,null,null,null,null,null,null,null,null,null,null,null,null,null,null,null,null,null,null,null,null,null,null,null,3690301,{"$f":"MID(AY161,1,3)","v":"369"},{"$f":"MID(AY161,4,5)","v":"0301"},"児玉郡上里町","369","369-0301",99]
[]
[]
[]
[]
[]
[]
[]
[]
[]
[]
[]
[]
[]
[]
[]
[]
[]
[]
[]
[]
[]
[]
[]
[]
[]
[]
[]
[]
[null,null,null,null,null,null,null,null,null,null,null,null,null,null,null,null,null,null,null,null,null,null,null,null,null,null,null,null,null,null,null,null,null,null,null,null,null,null,null,null,null,null,null,null,null,null,null,null,null,null,null,{"$f":"MID(AY190,1,3)","v":""},{"$f":"MID(AY190,4,5)","v":""},null,{"$f":"IF(AY190<>\"\",MID(AY190,1,3),\"\")","v":""},{"$f":"IF(BC190<>\"\",AZ190&\"-\"&BA190,\"\")","v":""}]
[null,null,null,null,null,null,null,null,null,null,null,null,null,null,null,null,null,null,null,null,null,null,null,null,null,null,null,null,null,null,null,null,null,null,null,null,null,null,null,null,null,null,null,null,null,null,null,null,null,null,null,"","",null,"",""]
[null,null,null,null,null,null,null,null,null,null,null,null,null,null,null,null,null,null,null,null,null,null,null,null,null,null,null,null,null,null,null,null,null,null,null,null,null,null,null,null,null,null,null,null,null,null,null,null,null,null,null,"","",null,"",""]
[null,null,null,null,null,null,null,null,null,null,null,null,null,null,null,null,null,null,null,null,null,null,null,null,null,null,null,null,null,null,null,null,null,null,null,null,null,null,null,null,null,null,null,null,null,null,null,null,null,null,null,"","",null,"",""]
[null,null,null,null,null,null,null,null,null,null,null,null,null,null,null,null,null,null,null,null,null,null,null,null,null,null,null,null,null,null,null,null,null,null,null,null,null,null,null,null,null,null,null,null,null,null,null,null,null,null,null,"","",null,"",""]
[null,null,null,null,null,null,null,null,null,null,null,null,null,null,null,null,null,null,null,null,null,null,null,null,null,null,null,null,null,null,null,null,null,null,null,null,null,null,null,null,null,null,null,null,null,null,null,null,null,null,null,"","",null,"",""]
[null,null,null,null,null,null,null,null,null,null,null,null,null,null,null,null,null,null,null,null,null,null,null,null,null,null,null,null,null,null,null,null,null,null,null,null,null,null,null,null,null,null,null,null,null,null,null,null,null,null,null,{"$f":"MID(AY209,1,3)","v":""},{"$f":"MID(AY209,4,5)","v":""},null,{"$f":"IF(AY209<>\"\",MID(AY209,1,3),\"\")","v":""},""]